Workbook

Sheet Disclaimer
B2: Disclaimer
B3: =CELL("filename",B2) -> C:\Temp Files\SpecMaker 2025\specmaker 2025\[SpecMaker 2025.xlsm]Disclaimer
B4: Spreadsheet prepared by Dr. Gordon Gilmore
B5: 01/08/2009 updated and renamed 3/01/2025
B7: These worksheets are provided in good faith for for the convenience of gamma spectrometrists and readers of Practical Gamma-Ray Spectrometry.
B8: The author cannot be held responsible for any inconvenience or loss of any kind arising from the use of these spreadsheets or the conclusions drawn from them.

Sheet Control
B2: SpecMaker - Create Test Spectra
B3: =CELL("filename",B2) -> C:\Temp Files\SpecMaker 2025\specmaker 2025\[SpecMaker 2025.xlsm]Control
B4: Spreadsheet prepared by Dr. Gordon Gilmore
B6: Control Data | G6: Peak List | P6: Number of Peaks: | Q6: =COUNT(H9:H58) -> 0 | S6: RMS diff: | T6: =SQRT(SUMSQ(T9:T58)/Q6) ->  | U6: =AVERAGE(U9:U58) -> 
B7: Spectrum Size: | C7: =VLOOKUP(D43,$C$45:$D$49,2) -> 8192 | D7: channels | H7: Energy | I7: Peak Area | J7: Position | K7: FWHM | L7: Peak width | P7: Created
B8: Maximum Energy: | C8: =IF(C21<>"",$C$20+C7*$C$21+$C$22*C7^2,"") -> 2202.281796 | D8: keV | H8: (keV) | I8: (counts) | J8: (Channel) | K8: (keV) | L8: (Channels) | M8: sigma | N8: ymax | O8: 2s^2 | P8: Centroid | Q8: Count | R8: Midpt | S8: halfwidth | T8: Cent diffs
B9: Background at Channel 2: | C9: 6100 | D9: counts | G9: 1 | J9: =IF(H9<>"",IF(H9>$C$8,"OFF SCALE",1/((-$C$21-SQRT($C$21^2-4*($C$20-H9)*$C$22))/(2*($C$20-H9)))),"") ->  | K9: =IF(H9<>"",IF(H9<>511,($C$24*H9+$C$23+H9^2*$C$25),$C$50*($C$24*H9+$C$23+H9^2*$C$25)),"") ->  | L9: =IF(H9<>"",ROUND(2*K9*$C$27/$C$21/2.355,0),"") ->  | M9: =K9/2.355/$C$21 ->  | N9: =I9/(M9*SQRT(2*PI())) ->  | O9: =2*M9^2 ->  | P9: 385.6849425 | Q9: 9995 | R9: 386 | S9: 4 | T9: =IF(P9<>"",P9-J9,"") ->  | U9: =IF(P9<>"",Q9/I9,"") -> 
B10: =CONCATENATE("Background at Channel ",C7,":") -> Background at Channel 8192: | C10: 100 | D10: counts | G10: =1+G9 -> 2 | J10: =IF(H10<>"",IF(H10>$C$8,"OFF SCALE",1/((-$C$21-SQRT($C$21^2-4*($C$20-H10)*$C$22))/(2*($C$20-H10)))),"") ->  | K10: =IF(H10<>"",IF(H10<>511,($C$24*H10+$C$23+H10^2*$C$25),$C$50*($C$24*H10+$C$23+H10^2*$C$25)),"") ->  | L10: =IF(H10<>"",ROUND(2*K10*$C$27/$C$21/2.355,0),"") ->  | M10: =K10/2.355/$C$21 ->  | N10: =I10/(M10*SQRT(2*PI())) ->  | O10: =2*M10^2 ->  | P10: 534.2100325 | Q10: 7994 | R10: 534 | S10: 4 | T10: =IF(P10<>"",P10-J10,"") ->  | U10: =IF(P10<>"",Q10/I10,"") -> 
B11: =IF(C12<>3,"Background Gradient:", "Decay Factor:") -> Background Gradient: | C11: =IF(C12<>3,(C10-C9)/(C7-2),-LN(C10/C9)/C7) -> -0.7326007326 | G11: =1+G10 -> 3 | L11: =IF(H11<>"",ROUND(2*K11*$C$27/$C$21/2.355,0),"") ->  | P11: 682.7438678 | Q11: 5993 | R11: 683 | S11: 4 | T11: =IF(P11<>"",P11-J11,"") -> 
B12: Background Mode: | C12: 2 | G12: 4 | L12: =IF(H12<>"",ROUND(2*K12*$C$27/$C$21/2.355,0),"") ->  | P12: 831.2642124 | Q12: 3993 | R12: 831 | S12: 4
B13: OR | G13: 5 | P13: 979.7948974 | Q13: 1999 | R13: 980 | S13: 5
B14: Background Spectrum Filename: | E14: .CHN | G14: 6 | P14: 1128.324 | Q14: 1000 | R14: 1128 | S14: 5
C15: =IF(C14<>"","Mathematical Continuum Disabled","") ->  | G15: 7 | P15: 1276.864271 | Q15: 501 | R15: 1277 | S15: 5
B16: Working Folder: | C16: c:\temp files | G16: 8 | P16: 1425.378692 | Q16: 9987 | R16: 1425 | S16: 5
G17: 9 | P17: 1573.913871 | Q17: 7988 | R17: 1574 | S17: 5
G18: 10 | P18: 1722.431818 | Q18: 5984 | R18: 1722 | S18: 5
B19: Calibration Data | G19: 11 | P19: 1911.818501 | Q19: 3989 | R19: 1912 | S19: 8
B20: Energy Intercept: | C20: -3.868015528 | D20: keV | G20: =1+G19 -> 12 | J20: =IF(H20<>"",IF(H20>$C$8,"OFF SCALE",1/((-$C$21-SQRT($C$21^2-4*($C$20-H20)*$C$22))/(2*($C$20-H20)))),"") ->  | P20: 2019.496748 | Q20: 1999 | R20: 2019 | S20: 6
B21: Energy scale: | C21: 0.2693092525 | D21: keV/ch | G21: 13 | P21: 2168.024 | Q21: 1000 | R21: 2168 | S21: 6
B22: Energy Quad Factor: | C22: -4.706484091e-10 | D22: keV/ch2 | G22: 14 | P22: 2316.58 | Q22: 500 | R22: 2317 | S22: 6
B23: Width Intercept: | C23: 0.7163043618 | D23: keV | G23: 15 | P23: 2465.086229 | Q23: 9985 | R23: 2465 | S23: 6
B24: Width scale: | C24: 0.0009726297576 | G24: 16 | P24: 2613.626739 | Q24: 7981 | R24: 2614 | S24: 6
B25: Width Quad Factor: | C25: -1.023936136e-07 | D25: 1/keV | G25: 17 | M25: =K25/2.355/$C$21 ->  | N25: =I25/(M25*SQRT(2*PI())) ->  | O25: =2*M25^2 ->  | P25: 2762.143024 | Q25: 5985 | R25: 2762 | S25: 6
B26: Peak Coverage: | C26: 0.995 | G26: 18 | P26: 2910.678259 | Q26: 3997 | R26: 2911 | S26: 7
B27: Full-width: | C27: =NORMSINV((1+C26)/2) -> 2.807033768 | D27: Std. Unc. | G27: 19 | P27: 3059.203602 | Q27: 1999 | R27: 3059 | S27: 7
G28: 20 | P28: 3207.735736 | Q28: 999 | R28: 3208 | S28: 7
B29: Information for Saved Spectrum | G29: 21 | P29: 3356.262 | Q29: 500 | R29: 3356 | S29: 7
B30: Live time of Count: | D30: seconds | G30: 22 | P30: 3504.799519 | Q30: 9981 | R30: 3505 | S30: 7
B31: Output Spectrum Filename: | E31: .CHN | G31: 23 | P31: 3653.317247 | Q31: 7978 | R31: 3653 | S31: 7
B32: Spectrum Description: | G32: 24 | P32: 3801.858623 | Q32: 5984 | R32: 3802 | S32: 7
G33: 25 | P33: 3950.371988 | Q33: 3984 | R33: 3950 | S33: 7
B34: Useful Information | G34: 26 | P34: 4098.91984 | Q34: 1996 | R34: 4099 | S34: 8
C35: Resolution of this Detector at 1332.5 keV: | D35: =ROUND(C23+C24*1332.5+1332.5^2*C25,2) -> 1.83 | E35: keV | G35: 27 | P35: 4247.441884 | Q35: 998 | R35: 4247 | S35: 8
C36: Typical Resolution at 1332.5 keV: | D36: ="1.80" -> 1.80 | E36: keV | G36: 28 | P36: 4395.967936 | Q36: 499 | R36: 4396 | S36: 8
B37: Resolution at this Energy (keV): | C37: 511 | D37: =IF(C37<>511,ROUND(C23+C24*C37+C37^2*C25,2),ROUND(C50*(C23+C24*C37+C37^2*C25),2)) -> 2.37 | E37: keV | G37: 29 | P37: 4544.516737 | Q37: 9978 | R37: 4545 | S37: 8
C38: Peak width at that Energy: | D38: =ROUND(2*D37*$C$27/$C$21/2.355,0) -> 21 | E38: chs | G38: 30 | P38: 4693.036206 | Q38: 7982 | R38: 4693 | S38: 8
C39: Peak Position at that Energy: | D39: =1/((-$C$21-SQRT($C$21^2-4*($C$20-C37)*$C$22))/(2*($C$20-C37)))-D38 -> 1890.815992 | E39: ch | G39: 31 | P39: 4841.580117 | Q39: 5985 | R39: 4842 | S39: 8
C40: Critical Limit at that Position: | D40: =1.645*SQRT(VLOOKUP(INT(D39),Spectrum!A2:B8191,2)*(1+D38/10)) -> 198.9205665 | E40: cts | G40: 32 | P40: 4990.09433 | Q40: 3986 | R40: 4990 | S40: 8
G41: 33 | P41: 5138.649598 | Q41: 1992 | R41: 5139 | S41: 8
B42: Background Mode | D42: Spec Sizes | G42: 34 | P42: 5287.168 | Q42: 1000 | R42: 5287 | S42: 9
D43: 5 | G43: 35 | P43: 5435.707415 | Q43: 499 | R43: 5436 | S43: 9
G44: 36 | P44: 5584.217513 | Q44: 9981 | R44: 5584 | S44: 9
A45: 1 | B45: Unscattered | C45: 1 | D45: 512 | G45: 37 | P45: 5732.758331 | Q45: 7982 | R45: 5733 | S45: 9
A46: 2 | B46: Linear | C46: 2 | D46: 1024 | G46: 38 | P46: 5881.278075 | Q46: 5984 | R46: 5881 | S46: 9
A47: 3 | B47: Exponential | C47: 3 | D47: 2048 | G47: 39 | P47: 6029.822556 | Q47: 3990 | R47: 6030 | S47: 9
A48: 4 | B48: Linear Flat | C48: 4 | D48: 4096 | G48: 40 | P48: 6178.333333 | Q48: 1995 | R48: 6178 | S48: 9
A49: 5 | B49: Spectrum | C49: 5 | D49: 8192 | G49: 41 | P49: 6326.881407 | Q49: 995 | R49: 6327 | S49: 9
B50: 511 keV width Factor: | C50: 2 | G50: 42 | P50: 6475.403226 | Q50: 496 | R50: 6475 | S50: 10
G51: 43 | P51: 6623.942808 | Q51: 9984 | R51: 6624 | S51: 10
G52: 44 | P52: 6772.463494 | Q52: 7985 | R52: 6772 | S52: 10
G53: 45 | P53: 6921.005845 | Q53: 5988 | R53: 6921 | S53: 10
G54: 46 | P54: 7069.550739 | Q54: 3991 | R54: 7070 | S54: 10
G55: 47 | P55: 7218.058617 | Q55: 1996 | R55: 7218 | S55: 10
G56: 48 | P56: 7366.609438 | Q56: 996 | R56: 7367 | S56: 10
G57: 49 | P57: 7515.118236 | Q57: 499 | R57: 7515 | S57: 10
G58: 50 | P58: 7663.676438 | Q58: 9961 | R58: 7664 | S58: 10

Sheet Spectrum
A1: Channel Number | B1: Original Channel Contents | C1: Scattered Channel Contents | D1: Peak Counts | J1: 734 | K1: 101 | L1: =IF(K1<>0,ROUND(K1+NORMSINV(RAND())*SQRT(K1),0)) -> 91 | M1: Channel Energy keV | N1: 2 sigma Upper Limit | O1: 2 sigma Lower Limit
A2: 2 | B2: 6100 | C2: 6029 | G2: Format of CHN files | J2: =NOW() -> 2025-02-10T11:40:03.970 | M2: =Control!$C$20+Control!$C$21*A2+Control!$C$22*A2^2 -> -3.329397025 | N2: =Spectrum!B2+2*SQRT(Spectrum!B2) -> 6256.204994 | O2: =Spectrum!B2-2*SQRT(Spectrum!B2) -> 5943.795006
A3: 3 | B3: 6099 | C3: 6088 | M3: =Control!$C$20+Control!$C$21*A3+Control!$C$22*A3^2 -> -3.060087774 | N3: =IF(D3=0,B3+2*SQRT(B3),N2) -> 6255.192189 | O3: =IF(D3=0,B3-2*SQRT(B3),O2) -> 5942.807811
A4: 4 | B4: 6099 | C4: 6050 | G4: 0 | H4: 2 | I4: Marker | J4: -1 | M4: =Control!$C$20+Control!$C$21*A4+Control!$C$22*A4^2 -> -2.790778525 | N4: 6255.192189 | O4: 5942.807811
A5: 5 | B5: 6098 | C5: 6102 | G5: 2 | H5: 2 | I5: MCA number | J5: 0 | M5: =Control!$C$20+Control!$C$21*A5+Control!$C$22*A5^2 -> -2.521469277 | N5: 6254.179384 | O5: 5941.820616
A6: 6 | B6: 6097 | C6: 5933 | G6: 4 | H6: 2 | I6: Segment | J6: 1 | M6: =Control!$C$20+Control!$C$21*A6+Control!$C$22*A6^2 -> -2.25216003 | N6: 6253.166578 | O6: 5940.833422
A7: 7 | B7: 6096 | C7: 5962 | G7: 6 | H7: 2 | I7: ASCII Seconds | J7: =UPPER(TEXT(NOW(),"ss")) -> 04 | M7: =Control!$C$20+Control!$C$21*A7+Control!$C$22*A7^2 -> -1.982850783 | N7: 6252.15377 | O7: 5939.84623
A8: 8 | B8: 6096 | C8: 6091 | G8: 8 | H8: 4 | I8: RT in 1/50s units | J8: =Control!C30*50 -> 0 | K8: =J8/50 -> 0 | L8: s | M8: =Control!$C$20+Control!$C$21*A8+Control!$C$22*A8^2 -> -1.713541538 | N8: 6252.15377 | O8: 5939.84623
A9: 9 | B9: 6095 | C9: 6122 | G9: 12 | H9: 4 | I9: LT in 1/50s units | J9: =J8 -> 0 | K9: =J9/50 -> 0 | L9: s | M9: =Control!$C$20+Control!$C$21*A9+Control!$C$22*A9^2 -> -1.444232293 | N9: 6251.140962 | O9: 5938.859038
A10: 10 | B10: 6094 | C10: 5980 | G10: 16 | H10: 8 | I10: Date SOC | J10: =TEXT(NOW(),"ddmmmyy") -> 10Feb25 | M10: =Control!$C$20+Control!$C$21*A10+Control!$C$22*A10^2 -> -1.17492305 | N10: 6250.128152 | O10: 5937.871848
A11: 11 | B11: 6093 | C11: 5970 | G11: 24 | H11: 4 | I11: Time SOC | J11: =UPPER(TEXT(NOW(),"hhmmyy")) -> 114025 | M11: =Control!$C$20+Control!$C$21*A11+Control!$C$22*A11^2 -> -0.9056138072 | N11: 6249.115342 | O11: 5936.884658
A12: 12 | B12: 6093 | C12: 6061 | G12: 28 | H12: 2 | I12: Channel offset | J12: 0 | M12: =Control!$C$20+Control!$C$21*A12+Control!$C$22*A12^2 -> -0.6363045655 | N12: 6249.115342 | O12: 5936.884658
A13: 13 | B13: 6092 | C13: 6234 | G13: 30 | H13: 2 | I13: Spectrum Size | J13: =Control!C7 -> 8192 | M13: =Control!$C$20+Control!$C$21*A13+Control!$C$22*A13^2 -> -0.3669953248 | N13: 6248.10253 | O13: 5935.89747
A14: 14 | B14: 6091 | C14: 6043 | M14: =Control!$C$20+Control!$C$21*A14+Control!$C$22*A14^2 -> -0.09768608496 | N14: 6247.089718 | O14: 5934.910282
A15: 15 | B15: 6090 | C15: 6099 | G15: 0 | H15: 2 | I15: Marker | J15: -102 | M15: =Control!$C$20+Control!$C$21*A15+Control!$C$22*A15^2 -> 0.1716231539 | N15: 6246.076904 | O15: 5933.923096
A16: 16 | B16: 6090 | C16: 6124 | G16: 2 | H16: 2 | I16: Reserved | M16: =Control!$C$20+Control!$C$21*A16+Control!$C$22*A16^2 -> 0.4409323918 | N16: 6246.076904 | O16: 5933.923096
A17: 17 | B17: 6089 | C17: 6183 | G17: 4 | H17: 4 | I17: En int | J17: =Control!C20 -> -3.868015528 | K17: keV | M17: =Control!$C$20+Control!$C$21*A17+Control!$C$22*A17^2 -> 0.7102416288 | N17: 6245.064089 | O17: 5932.935911
A18: 18 | B18: 6088 | C18: 6077 | G18: 8 | H18: 4 | I18: En grad | J18: =Control!C21 -> 0.2693092525 | K18: keV/ch | M18: =Control!$C$20+Control!$C$21*A18+Control!$C$22*A18^2 -> 0.9795508648 | N18: 6244.051274 | O18: 5931.948726
A19: 19 | B19: 6088 | C19: 6003 | G19: 12 | H19: 4 | I19: En Quad | J19: =Control!C22 -> -4.706484091e-10 | M19: =Control!$C$20+Control!$C$21*A19+Control!$C$22*A19^2 -> 1.2488601 | N19: 6244.051274 | O19: 5931.948726
A20: 20 | B20: 6087 | C20: 6103 | G20: 16 | H20: 4 | I20: Width Int | J20: =Control!C23/J18 -> 2.659783707 | K20: ch | M20: =Control!$C$20+Control!$C$21*A20+Control!$C$22*A20^2 -> 1.518169334 | N20: 6243.038457 | O20: 5930.961543
A21: 21 | B21: 6086 | C21: 6120 | G21: 20 | H21: 4 | I21: Width Grad | J21: =Control!C24 -> 0.0009726297576 | K21: ch/ch | M21: =Control!$C$20+Control!$C$21*A21+Control!$C$22*A21^2 -> 1.787478567 | N21: 6242.025639 | O21: 5929.974361
A22: 22 | B22: 6085 | C22: 6054 | G22: 24 | H22: 4 | I22: Width Quad | J22: =Control!C25*J18 -> -2.757554754e-08 | M22: =Control!$C$20+Control!$C$21*A22+Control!$C$22*A22^2 -> 2.056787799 | N22: 6241.01282 | O22: 5928.98718
A23: 23 | B23: 6085 | C23: 6156 | G23: 256 | H23: 1 | I23: Length of descr | J23: =LEN(J24) -> 26 | M23: =Control!$C$20+Control!$C$21*A23+Control!$C$22*A23^2 -> 2.326097031 | N23: 6241.01282 | O23: 5928.98718
A24: 24 | B24: 6084 | C24: 6017 | G24: 257 | H24: 63 | I24: Det Descr | J24: SpecMaker Virtual Detector | M24: =Control!$C$20+Control!$C$21*A24+Control!$C$22*A24^2 -> 2.595406261 | N24: 6240 | O24: 5928
A25: 25 | B25: 6083 | C25: 6151 | G25: 320 | H25: 1 | I25: Length of descr | J25: =LEN(J26) -> 1 | M25: =Control!$C$20+Control!$C$21*A25+Control!$C$22*A25^2 -> 2.864715491 | N25: 6238.987179 | O25: 5927.012821
A26: 26 | B26: 6082 | C26: 6103 | G26: 321 | H26: 63 | I26: Sample Descr | J26: =Control!C32 -> 0 | M26: =Control!$C$20+Control!$C$21*A26+Control!$C$22*A26^2 -> 3.134024719 | N26: 6237.974357 | O26: 5926.025643
A27: 27 | B27: 6082 | C27: 6154 | G27: 384 | H27: 128 | I27: Reserved | M27: =Control!$C$20+Control!$C$21*A27+Control!$C$22*A27^2 -> 3.403333947 | N27: 6237.974357 | O27: 5926.025643
A28: 28 | B28: 6081 | C28: 6099 | M28: =Control!$C$20+Control!$C$21*A28+Control!$C$22*A28^2 -> 3.672643173 | N28: 6236.961534 | O28: 5925.038466
A29: 29 | B29: 6080 | C29: 6096 | I29: Filepath | J29: =CONCATENATE(Control!C16,"\",Control!C31,".chn") -> c:\temp files\.chn | M29: =Control!$C$20+Control!$C$21*A29+Control!$C$22*A29^2 -> 3.941952399 | N29: 6235.94871 | O29: 5924.05129
A30: 30 | B30: 6079 | C30: 6170 | I30: Background | J30: =IF(Control!C14<>"",CONCATENATE(Control!C16,"\",Control!C14:C14,".chn"),"") ->  | M30: =Control!$C$20+Control!$C$21*A30+Control!$C$22*A30^2 -> 4.211261624 | N30: 6234.935884 | O30: 5923.064116
A31: 31 | B31: 6079 | C31: 6111 | I31: Csv file: | J31: =CONCATENATE(Control!C16,"\",Control!C31,".csv") -> c:\temp files\.csv | M31: =Control!$C$20+Control!$C$21*A31+Control!$C$22*A31^2 -> 4.480570847 | N31: 6234.935884 | O31: 5923.064116
A32: 32 | B32: 6078 | C32: 6125 | M32: =Control!$C$20+Control!$C$21*A32+Control!$C$22*A32^2 -> 4.74988007 | N32: 6233.923058 | O32: 5922.076942
A33: 33 | B33: 6077 | C33: 6026 | M33: =Control!$C$20+Control!$C$21*A33+Control!$C$22*A33^2 -> 5.019189292 | N33: 6232.910231 | O33: 5921.089769
A34: 34 | B34: 6077 | C34: 5994 | M34: =Control!$C$20+Control!$C$21*A34+Control!$C$22*A34^2 -> 5.288498513 | N34: 6232.910231 | O34: 5921.089769
A35: 35 | B35: 6076 | C35: 6098 | M35: =Control!$C$20+Control!$C$21*A35+Control!$C$22*A35^2 -> 5.557807733 | N35: 6231.897402 | O35: 5920.102598
A36: 36 | B36: 6075 | C36: 6032 | M36: =Control!$C$20+Control!$C$21*A36+Control!$C$22*A36^2 -> 5.827116952 | N36: 6230.884573 | O36: 5919.115427
A37: 37 | B37: 6074 | C37: 5951 | M37: =Control!$C$20+Control!$C$21*A37+Control!$C$22*A37^2 -> 6.09642617 | N37: 6229.871742 | O37: 5918.128258
A38: 38 | B38: 6074 | C38: 6070 | M38: =Control!$C$20+Control!$C$21*A38+Control!$C$22*A38^2 -> 6.365735388 | N38: 6229.871742 | O38: 5918.128258
A39: 39 | B39: 6073 | C39: 6059 | M39: =Control!$C$20+Control!$C$21*A39+Control!$C$22*A39^2 -> 6.635044604 | N39: 6228.858911 | O39: 5917.141089
A40: 40 | B40: 6072 | C40: 5998 | M40: =Control!$C$20+Control!$C$21*A40+Control!$C$22*A40^2 -> 6.904353819 | N40: 6227.846078 | O40: 5916.153922
A41: 41 | B41: 6071 | C41: 6089 | M41: =Control!$C$20+Control!$C$21*A41+Control!$C$22*A41^2 -> 7.173663034 | N41: 6226.833244 | O41: 5915.166756
A42: 42 | B42: 6071 | C42: 6148 | M42: =Control!$C$20+Control!$C$21*A42+Control!$C$22*A42^2 -> 7.442972247 | N42: 6226.833244 | O42: 5915.166756
A43: 43 | B43: 6070 | C43: 5992 | M43: =Control!$C$20+Control!$C$21*A43+Control!$C$22*A43^2 -> 7.71228146 | N43: 6225.820409 | O43: 5914.179591
A44: 44 | B44: 6069 | C44: 6031 | M44: =Control!$C$20+Control!$C$21*A44+Control!$C$22*A44^2 -> 7.981590671 | N44: 6224.807574 | O44: 5913.192426
A45: 45 | B45: 6068 | C45: 5970 | M45: =Control!$C$20+Control!$C$21*A45+Control!$C$22*A45^2 -> 8.250899882 | N45: 6223.794737 | O45: 5912.205263
A46: 46 | B46: 6068 | C46: 5919 | M46: =Control!$C$20+Control!$C$21*A46+Control!$C$22*A46^2 -> 8.520209091 | N46: 6223.794737 | O46: 5912.205263
A47: 47 | B47: 6067 | C47: 6209 | M47: =Control!$C$20+Control!$C$21*A47+Control!$C$22*A47^2 -> 8.7895183 | N47: 6222.781899 | O47: 5911.218101
A48: 48 | B48: 6066 | C48: 6145 | M48: =Control!$C$20+Control!$C$21*A48+Control!$C$22*A48^2 -> 9.058827508 | N48: 6221.76906 | O48: 5910.23094
A49: 49 | B49: 6066 | C49: 5995 | M49: =Control!$C$20+Control!$C$21*A49+Control!$C$22*A49^2 -> 9.328136715 | N49: 6221.76906 | O49: 5910.23094
A50: 50 | B50: 6065 | C50: 6171 | M50: =Control!$C$20+Control!$C$21*A50+Control!$C$22*A50^2 -> 9.597445921 | N50: 6220.75622 | O50: 5909.24378
A51: 51 | B51: 6064 | C51: 6090 | M51: =Control!$C$20+Control!$C$21*A51+Control!$C$22*A51^2 -> 9.866755126 | N51: 6219.743379 | O51: 5908.256621
A52: 52 | B52: 6063 | C52: 6101 | M52: =Control!$C$20+Control!$C$21*A52+Control!$C$22*A52^2 -> 10.13606433 | N52: 6218.730537 | O52: 5907.269463
A53: 53 | B53: 6063 | C53: 5897 | M53: =Control!$C$20+Control!$C$21*A53+Control!$C$22*A53^2 -> 10.40537353 | N53: 6218.730537 | O53: 5907.269463
A54: 54 | B54: 6062 | C54: 6031 | M54: =Control!$C$20+Control!$C$21*A54+Control!$C$22*A54^2 -> 10.67468273 | N54: 6217.717693 | O54: 5906.282307
A55: 55 | B55: 6061 | C55: 5893 | M55: =Control!$C$20+Control!$C$21*A55+Control!$C$22*A55^2 -> 10.94399194 | N55: 6216.704849 | O55: 5905.295151
A56: 56 | B56: 6060 | C56: 6113 | M56: =Control!$C$20+Control!$C$21*A56+Control!$C$22*A56^2 -> 11.21330114 | N56: 6215.692004 | O56: 5904.307996
A57: 57 | B57: 6060 | C57: 5984 | M57: =Control!$C$20+Control!$C$21*A57+Control!$C$22*A57^2 -> 11.48261034 | N57: 6215.692004 | O57: 5904.307996
A58: 58 | B58: 6059 | C58: 6123 | M58: =Control!$C$20+Control!$C$21*A58+Control!$C$22*A58^2 -> 11.75191953 | N58: 6214.679157 | O58: 5903.320843
A59: 59 | B59: 6058 | C59: 6033 | M59: =Control!$C$20+Control!$C$21*A59+Control!$C$22*A59^2 -> 12.02122873 | N59: 6213.66631 | O59: 5902.33369
A60: 60 | B60: 6058 | C60: 5996 | M60: =Control!$C$20+Control!$C$21*A60+Control!$C$22*A60^2 -> 12.29053793 | N60: 6213.66631 | O60: 5902.33369
A61: 61 | B61: 6057 | C61: 5979 | M61: =Control!$C$20+Control!$C$21*A61+Control!$C$22*A61^2 -> 12.55984712 | N61: 6212.653461 | O61: 5901.346539
A62: 62 | B62: 6056 | C62: 5980 | M62: =Control!$C$20+Control!$C$21*A62+Control!$C$22*A62^2 -> 12.82915632 | N62: 6211.640612 | O62: 5900.359388
A63: 63 | B63: 6055 | C63: 5947 | M63: =Control!$C$20+Control!$C$21*A63+Control!$C$22*A63^2 -> 13.09846551 | N63: 6210.627761 | O63: 5899.372239
A64: 64 | B64: 6055 | C64: 6103 | M64: =Control!$C$20+Control!$C$21*A64+Control!$C$22*A64^2 -> 13.3677747 | N64: 6210.627761 | O64: 5899.372239
A65: 65 | B65: 6054 | C65: 6005 | M65: =Control!$C$20+Control!$C$21*A65+Control!$C$22*A65^2 -> 13.6370839 | N65: 6209.614909 | O65: 5898.385091
A66: 66 | B66: 6053 | C66: 6145 | M66: =Control!$C$20+Control!$C$21*A66+Control!$C$22*A66^2 -> 13.90639309 | N66: 6208.602057 | O66: 5897.397943
A67: 67 | B67: 6052 | C67: 6021 | M67: =Control!$C$20+Control!$C$21*A67+Control!$C$22*A67^2 -> 14.17570228 | N67: =IF(D67=0,B67+2*SQRT(B67),N66) -> 6207.589203 | O67: =IF(D67=0,B67-2*SQRT(B67),O66) -> 5896.410797
A68: 68 | B68: 6052 | C68: 6054 | M68: =Control!$C$20+Control!$C$21*A68+Control!$C$22*A68^2 -> 14.44501147 | N68: 6207.589203 | O68: 5896.410797
A69: 69 | B69: 6051 | C69: 6170 | M69: =Control!$C$20+Control!$C$21*A69+Control!$C$22*A69^2 -> 14.71432065 | N69: 6206.576348 | O69: 5895.423652
A70: 70 | B70: 6050 | C70: 6023 | M70: =Control!$C$20+Control!$C$21*A70+Control!$C$22*A70^2 -> 14.98362984 | N70: 6205.563492 | O70: 5894.436508
A71: 71 | B71: 6049 | C71: 6015 | M71: =Control!$C$20+Control!$C$21*A71+Control!$C$22*A71^2 -> 15.25293903 | N71: 6204.550635 | O71: 5893.449365
A72: 72 | B72: 6049 | C72: 6236 | M72: =Control!$C$20+Control!$C$21*A72+Control!$C$22*A72^2 -> 15.52224821 | N72: 6204.550635 | O72: 5893.449365
A73: 73 | B73: 6048 | C73: 6045 | M73: =Control!$C$20+Control!$C$21*A73+Control!$C$22*A73^2 -> 15.7915574 | N73: 6203.537777 | O73: 5892.462223
A74: 74 | B74: 6047 | C74: 6008 | M74: =Control!$C$20+Control!$C$21*A74+Control!$C$22*A74^2 -> 16.06086658 | N74: 6202.524918 | O74: 5891.475082
A75: 75 | B75: 6047 | C75: 5941 | M75: =Control!$C$20+Control!$C$21*A75+Control!$C$22*A75^2 -> 16.33017576 | N75: 6202.524918 | O75: 5891.475082
A76: 76 | B76: 6046 | C76: 6070 | M76: =Control!$C$20+Control!$C$21*A76+Control!$C$22*A76^2 -> 16.59948494 | N76: 6201.512057 | O76: 5890.487943
A77: 77 | B77: 6045 | C77: 5956 | M77: =Control!$C$20+Control!$C$21*A77+Control!$C$22*A77^2 -> 16.86879412 | N77: 6200.499196 | O77: 5889.500804
A78: 78 | B78: 6044 | C78: 6006 | M78: =Control!$C$20+Control!$C$21*A78+Control!$C$22*A78^2 -> 17.1381033 | N78: 6199.486334 | O78: 5888.513666
A79: 79 | B79: 6044 | C79: 6052 | M79: =Control!$C$20+Control!$C$21*A79+Control!$C$22*A79^2 -> 17.40741248 | N79: 6199.486334 | O79: 5888.513666
A80: 80 | B80: 6043 | C80: 6111 | M80: =Control!$C$20+Control!$C$21*A80+Control!$C$22*A80^2 -> 17.67672166 | N80: 6198.47347 | O80: 5887.52653
A81: 81 | B81: 6042 | C81: 6045 | M81: =Control!$C$20+Control!$C$21*A81+Control!$C$22*A81^2 -> 17.94603084 | N81: 6197.460606 | O81: 5886.539394
A82: 82 | B82: 6041 | C82: 5974 | M82: =Control!$C$20+Control!$C$21*A82+Control!$C$22*A82^2 -> 18.21534001 | N82: 6196.44774 | O82: 5885.55226
A83: 83 | B83: 6041 | C83: 6083 | M83: =Control!$C$20+Control!$C$21*A83+Control!$C$22*A83^2 -> 18.48464919 | N83: 6196.44774 | O83: 5885.55226
A84: 84 | B84: 6040 | C84: 6041 | M84: =Control!$C$20+Control!$C$21*A84+Control!$C$22*A84^2 -> 18.75395836 | N84: 6195.434874 | O84: 5884.565126
A85: 85 | B85: 6039 | C85: 6205 | M85: =Control!$C$20+Control!$C$21*A85+Control!$C$22*A85^2 -> 19.02326753 | N85: 6194.422006 | O85: 5883.577994
A86: 86 | B86: 6038 | C86: 6096 | M86: =Control!$C$20+Control!$C$21*A86+Control!$C$22*A86^2 -> 19.29257671 | N86: 6193.409137 | O86: 5882.590863
A87: 87 | B87: 6038 | C87: 6153 | M87: =Control!$C$20+Control!$C$21*A87+Control!$C$22*A87^2 -> 19.56188588 | N87: 6193.409137 | O87: 5882.590863
A88: 88 | B88: 6037 | C88: 6046 | M88: =Control!$C$20+Control!$C$21*A88+Control!$C$22*A88^2 -> 19.83119505 | N88: 6192.396268 | O88: 5881.603732
A89: 89 | B89: 6036 | C89: 6085 | M89: =Control!$C$20+Control!$C$21*A89+Control!$C$22*A89^2 -> 20.10050422 | N89: 6191.383397 | O89: 5880.616603
A90: 90 | B90: 6036 | C90: 6013 | M90: =Control!$C$20+Control!$C$21*A90+Control!$C$22*A90^2 -> 20.36981339 | N90: 6191.383397 | O90: 5880.616603
A91: 91 | B91: 6035 | C91: 5995 | M91: =Control!$C$20+Control!$C$21*A91+Control!$C$22*A91^2 -> 20.63912255 | N91: 6190.370525 | O91: 5879.629475
A92: 92 | B92: 6034 | C92: 6106 | M92: =Control!$C$20+Control!$C$21*A92+Control!$C$22*A92^2 -> 20.90843172 | N92: 6189.357652 | O92: 5878.642348
A93: 93 | B93: 6033 | C93: 6006 | M93: =Control!$C$20+Control!$C$21*A93+Control!$C$22*A93^2 -> 21.17774088 | N93: 6188.344778 | O93: 5877.655222
A94: 94 | B94: 6033 | C94: 6019 | M94: =Control!$C$20+Control!$C$21*A94+Control!$C$22*A94^2 -> 21.44705005 | N94: 6188.344778 | O94: 5877.655222
A95: 95 | B95: 6032 | C95: 5965 | M95: =Control!$C$20+Control!$C$21*A95+Control!$C$22*A95^2 -> 21.71635921 | N95: 6187.331903 | O95: 5876.668097
A96: 96 | B96: 6031 | C96: 5864 | M96: =Control!$C$20+Control!$C$21*A96+Control!$C$22*A96^2 -> 21.98566837 | N96: 6186.319027 | O96: 5875.680973
A97: 97 | B97: 6030 | C97: 6125 | M97: =Control!$C$20+Control!$C$21*A97+Control!$C$22*A97^2 -> 22.25497754 | N97: 6185.306149 | O97: 5874.693851
A98: 98 | B98: 6030 | C98: 6020 | M98: =Control!$C$20+Control!$C$21*A98+Control!$C$22*A98^2 -> 22.5242867 | N98: 6185.306149 | O98: 5874.693851
A99: 99 | B99: 6029 | C99: 6031 | M99: =Control!$C$20+Control!$C$21*A99+Control!$C$22*A99^2 -> 22.79359586 | N99: 6184.293271 | O99: 5873.706729
A100: 100 | B100: 6028 | C100: 5984 | M100: =Control!$C$20+Control!$C$21*A100+Control!$C$22*A100^2 -> 23.06290502 | N100: 6183.280392 | O100: 5872.719608
A101: 101 | B101: 6027 | C101: 5918 | M101: =Control!$C$20+Control!$C$21*A101+Control!$C$22*A101^2 -> 23.33221417 | N101: 6182.267511 | O101: 5871.732489
A102: 102 | B102: 6027 | C102: 6126 | M102: =Control!$C$20+Control!$C$21*A102+Control!$C$22*A102^2 -> 23.60152333 | N102: 6182.267511 | O102: 5871.732489
A103: 103 | B103: 6026 | C103: 6149 | M103: =Control!$C$20+Control!$C$21*A103+Control!$C$22*A103^2 -> 23.87083249 | N103: 6181.25463 | O103: 5870.74537
A104: 104 | B104: 6025 | C104: 6131 | M104: =Control!$C$20+Control!$C$21*A104+Control!$C$22*A104^2 -> 24.14014164 | N104: 6180.241747 | O104: 5869.758253
A105: 105 | B105: 6025 | C105: 6072 | M105: =Control!$C$20+Control!$C$21*A105+Control!$C$22*A105^2 -> 24.4094508 | N105: 6180.241747 | O105: 5869.758253
A106: 106 | B106: 6024 | C106: 6136 | M106: =Control!$C$20+Control!$C$21*A106+Control!$C$22*A106^2 -> 24.67875995 | N106: 6179.228863 | O106: 5868.771137
A107: 107 | B107: 6023 | C107: 5876 | M107: =Control!$C$20+Control!$C$21*A107+Control!$C$22*A107^2 -> 24.9480691 | N107: 6178.215979 | O107: 5867.784021
A108: 108 | B108: 6022 | C108: 6031 | M108: =Control!$C$20+Control!$C$21*A108+Control!$C$22*A108^2 -> 25.21737825 | N108: 6177.203093 | O108: 5866.796907
A109: 109 | B109: 6022 | C109: 6030 | M109: =Control!$C$20+Control!$C$21*A109+Control!$C$22*A109^2 -> 25.4866874 | N109: 6177.203093 | O109: 5866.796907
A110: 110 | B110: 6021 | C110: 6045 | M110: =Control!$C$20+Control!$C$21*A110+Control!$C$22*A110^2 -> 25.75599655 | N110: 6176.190206 | O110: 5865.809794
A111: 111 | B111: 6020 | C111: 6058 | M111: =Control!$C$20+Control!$C$21*A111+Control!$C$22*A111^2 -> 26.0253057 | N111: 6175.177318 | O111: 5864.822682
A112: 112 | B112: 6019 | C112: 6071 | M112: =Control!$C$20+Control!$C$21*A112+Control!$C$22*A112^2 -> 26.29461485 | N112: 6174.164429 | O112: 5863.835571
A113: 113 | B113: 6019 | C113: 5964 | M113: =Control!$C$20+Control!$C$21*A113+Control!$C$22*A113^2 -> 26.563924 | N113: 6174.164429 | O113: 5863.835571
A114: 114 | B114: 6018 | C114: 6013 | M114: =Control!$C$20+Control!$C$21*A114+Control!$C$22*A114^2 -> 26.83323314 | N114: 6173.151539 | O114: 5862.848461
A115: 115 | B115: 6017 | C115: 6084 | M115: =Control!$C$20+Control!$C$21*A115+Control!$C$22*A115^2 -> 27.10254229 | N115: 6172.138648 | O115: 5861.861352
A116: 116 | B116: 6016 | C116: 5980 | M116: =Control!$C$20+Control!$C$21*A116+Control!$C$22*A116^2 -> 27.37185143 | N116: 6171.125755 | O116: 5860.874245
A117: 117 | B117: 6016 | C117: 5955 | M117: =Control!$C$20+Control!$C$21*A117+Control!$C$22*A117^2 -> 27.64116057 | N117: 6171.125755 | O117: 5860.874245
A118: 118 | B118: 6015 | C118: 6103 | M118: =Control!$C$20+Control!$C$21*A118+Control!$C$22*A118^2 -> 27.91046971 | N118: 6170.112862 | O118: 5859.887138
A119: 119 | B119: 6014 | C119: 6089 | M119: =Control!$C$20+Control!$C$21*A119+Control!$C$22*A119^2 -> 28.17977885 | N119: 6169.099968 | O119: 5858.900032
A120: 120 | B120: 6014 | C120: 5904 | M120: =Control!$C$20+Control!$C$21*A120+Control!$C$22*A120^2 -> 28.449088 | N120: 6169.099968 | O120: 5858.900032
A121: 121 | B121: 6013 | C121: 5899 | M121: =Control!$C$20+Control!$C$21*A121+Control!$C$22*A121^2 -> 28.71839713 | N121: 6168.087072 | O121: 5857.912928
A122: 122 | B122: 6012 | C122: 6099 | M122: =Control!$C$20+Control!$C$21*A122+Control!$C$22*A122^2 -> 28.98770627 | N122: 6167.074176 | O122: 5856.925824
A123: 123 | B123: 6011 | C123: 6083 | M123: =Control!$C$20+Control!$C$21*A123+Control!$C$22*A123^2 -> 29.25701541 | N123: 6166.061278 | O123: 5855.938722
A124: 124 | B124: 6011 | C124: 6037 | M124: =Control!$C$20+Control!$C$21*A124+Control!$C$22*A124^2 -> 29.52632455 | N124: 6166.061278 | O124: 5855.938722
A125: 125 | B125: 6010 | C125: 6018 | M125: =Control!$C$20+Control!$C$21*A125+Control!$C$22*A125^2 -> 29.79563368 | N125: 6165.04838 | O125: 5854.95162
A126: 126 | B126: 6009 | C126: 5866 | M126: =Control!$C$20+Control!$C$21*A126+Control!$C$22*A126^2 -> 30.06494282 | N126: 6164.03548 | O126: 5853.96452
A127: 127 | B127: 6008 | C127: 6023 | M127: =Control!$C$20+Control!$C$21*A127+Control!$C$22*A127^2 -> 30.33425195 | N127: 6163.022579 | O127: 5852.977421
A128: 128 | B128: 6008 | C128: 6022 | M128: =Control!$C$20+Control!$C$21*A128+Control!$C$22*A128^2 -> 30.60356108 | N128: 6163.022579 | O128: 5852.977421
A129: 129 | B129: 6007 | C129: 6080 | M129: =Control!$C$20+Control!$C$21*A129+Control!$C$22*A129^2 -> 30.87287021 | N129: 6162.009677 | O129: 5851.990323
A130: 130 | B130: 6006 | C130: 5958 | M130: =Control!$C$20+Control!$C$21*A130+Control!$C$22*A130^2 -> 31.14217934 | N130: 6160.996774 | O130: 5851.003226
A131: 131 | B131: 6005 | C131: 5920 | M131: =Control!$C$20+Control!$C$21*A131+Control!$C$22*A131^2 -> 31.41148847 | N131: =IF(D131=0,B131+2*SQRT(B131),N130) -> 6159.98387 | O131: =IF(D131=0,B131-2*SQRT(B131),O130) -> 5850.01613
A132: 132 | B132: 6005 | C132: 6027 | M132: =Control!$C$20+Control!$C$21*A132+Control!$C$22*A132^2 -> 31.6807976 | N132: 6159.98387 | O132: 5850.01613
A133: 133 | B133: 6004 | C133: 5930 | M133: =Control!$C$20+Control!$C$21*A133+Control!$C$22*A133^2 -> 31.95010673 | N133: 6158.970965 | O133: 5849.029035
A134: 134 | B134: 6003 | C134: 5967 | M134: =Control!$C$20+Control!$C$21*A134+Control!$C$22*A134^2 -> 32.21941586 | N134: 6157.958059 | O134: 5848.041941
A135: 135 | B135: 6003 | C135: 5978 | M135: =Control!$C$20+Control!$C$21*A135+Control!$C$22*A135^2 -> 32.48872498 | N135: 6157.958059 | O135: 5848.041941
A136: 136 | B136: 6002 | C136: 5958 | M136: =Control!$C$20+Control!$C$21*A136+Control!$C$22*A136^2 -> 32.75803411 | N136: 6156.945152 | O136: 5847.054848
A137: 137 | B137: 6001 | C137: 5761 | M137: =Control!$C$20+Control!$C$21*A137+Control!$C$22*A137^2 -> 33.02734323 | N137: 6155.932243 | O137: 5846.067757
A138: 138 | B138: 6000 | C138: 6011 | M138: =Control!$C$20+Control!$C$21*A138+Control!$C$22*A138^2 -> 33.29665235 | N138: 6154.919334 | O138: 5845.080666
A139: 139 | B139: 6000 | C139: 6066 | M139: =Control!$C$20+Control!$C$21*A139+Control!$C$22*A139^2 -> 33.56596148 | N139: 6154.919334 | O139: 5845.080666
A140: 140 | B140: 5999 | C140: 5966 | M140: =Control!$C$20+Control!$C$21*A140+Control!$C$22*A140^2 -> 33.8352706 | N140: 6153.906423 | O140: 5844.093577
A141: 141 | B141: 5998 | C141: 6034 | M141: =Control!$C$20+Control!$C$21*A141+Control!$C$22*A141^2 -> 34.10457972 | N141: 6152.893512 | O141: 5843.106488
A142: 142 | B142: 5997 | C142: 5878 | M142: =Control!$C$20+Control!$C$21*A142+Control!$C$22*A142^2 -> 34.37388884 | N142: 6151.880599 | O142: 5842.119401
A143: 143 | B143: 5997 | C143: 6027 | M143: =Control!$C$20+Control!$C$21*A143+Control!$C$22*A143^2 -> 34.64319796 | N143: 6151.880599 | O143: 5842.119401
A144: 144 | B144: 5996 | C144: 5992 | M144: =Control!$C$20+Control!$C$21*A144+Control!$C$22*A144^2 -> 34.91250707 | N144: 6150.867685 | O144: 5841.132315
A145: 145 | B145: 5995 | C145: 6001 | M145: =Control!$C$20+Control!$C$21*A145+Control!$C$22*A145^2 -> 35.18181619 | N145: 6149.854771 | O145: 5840.145229
A146: 146 | B146: 5995 | C146: 6052 | M146: =Control!$C$20+Control!$C$21*A146+Control!$C$22*A146^2 -> 35.45112531 | N146: 6149.854771 | O146: 5840.145229
A147: 147 | B147: 5994 | C147: 6039 | M147: =Control!$C$20+Control!$C$21*A147+Control!$C$22*A147^2 -> 35.72043442 | N147: 6148.841855 | O147: 5839.158145
A148: 148 | B148: 5993 | C148: 5911 | M148: =Control!$C$20+Control!$C$21*A148+Control!$C$22*A148^2 -> 35.98974353 | N148: 6147.828938 | O148: 5838.171062
A149: 149 | B149: 5992 | C149: 6045 | M149: =Control!$C$20+Control!$C$21*A149+Control!$C$22*A149^2 -> 36.25905265 | N149: 6146.81602 | O149: 5837.18398
A150: 150 | B150: 5992 | C150: 5866 | M150: =Control!$C$20+Control!$C$21*A150+Control!$C$22*A150^2 -> 36.52836176 | N150: 6146.81602 | O150: 5837.18398
A151: 151 | B151: 5991 | C151: 5960 | M151: =Control!$C$20+Control!$C$21*A151+Control!$C$22*A151^2 -> 36.79767087 | N151: 6145.803101 | O151: 5836.196899
A152: 152 | B152: 5990 | C152: 6023 | M152: =Control!$C$20+Control!$C$21*A152+Control!$C$22*A152^2 -> 37.06697998 | N152: 6144.790181 | O152: 5835.209819
A153: 153 | B153: 5989 | C153: 6114 | M153: =Control!$C$20+Control!$C$21*A153+Control!$C$22*A153^2 -> 37.33628909 | N153: 6143.777259 | O153: 5834.222741
A154: 154 | B154: 5989 | C154: 5806 | M154: =Control!$C$20+Control!$C$21*A154+Control!$C$22*A154^2 -> 37.6055982 | N154: 6143.777259 | O154: 5834.222741
A155: 155 | B155: 5988 | C155: 6018 | M155: =Control!$C$20+Control!$C$21*A155+Control!$C$22*A155^2 -> 37.8749073 | N155: 6142.764337 | O155: 5833.235663
A156: 156 | B156: 5987 | C156: 5945 | M156: =Control!$C$20+Control!$C$21*A156+Control!$C$22*A156^2 -> 38.14421641 | N156: 6141.751414 | O156: 5832.248586
A157: 157 | B157: 5986 | C157: 6000 | M157: =Control!$C$20+Control!$C$21*A157+Control!$C$22*A157^2 -> 38.41352551 | N157: 6140.738489 | O157: 5831.261511
A158: 158 | B158: 5986 | C158: 6062 | M158: =Control!$C$20+Control!$C$21*A158+Control!$C$22*A158^2 -> 38.68283462 | N158: 6140.738489 | O158: 5831.261511
A159: 159 | B159: 5985 | C159: 5899 | M159: =Control!$C$20+Control!$C$21*A159+Control!$C$22*A159^2 -> 38.95214372 | N159: 6139.725563 | O159: 5830.274437
A160: 160 | B160: 5984 | C160: 5904 | M160: =Control!$C$20+Control!$C$21*A160+Control!$C$22*A160^2 -> 39.22145282 | N160: 6138.712637 | O160: 5829.287363
A161: 161 | B161: 5984 | C161: 5917 | M161: =Control!$C$20+Control!$C$21*A161+Control!$C$22*A161^2 -> 39.49076193 | N161: 6138.712637 | O161: 5829.287363
A162: 162 | B162: 5983 | C162: 6001 | M162: =Control!$C$20+Control!$C$21*A162+Control!$C$22*A162^2 -> 39.76007103 | N162: 6137.699709 | O162: 5828.300291
A163: 163 | B163: 5982 | C163: 5870 | M163: =Control!$C$20+Control!$C$21*A163+Control!$C$22*A163^2 -> 40.02938013 | N163: 6136.68678 | O163: 5827.31322
A164: 164 | B164: 5981 | C164: 6044 | M164: =Control!$C$20+Control!$C$21*A164+Control!$C$22*A164^2 -> 40.29868922 | N164: 6135.67385 | O164: 5826.32615
A165: 165 | B165: 5981 | C165: 5990 | M165: =Control!$C$20+Control!$C$21*A165+Control!$C$22*A165^2 -> 40.56799832 | N165: 6135.67385 | O165: 5826.32615
A166: 166 | B166: 5980 | C166: 6064 | M166: =Control!$C$20+Control!$C$21*A166+Control!$C$22*A166^2 -> 40.83730742 | N166: 6134.660919 | O166: 5825.339081
A167: 167 | B167: 5979 | C167: 6015 | M167: =Control!$C$20+Control!$C$21*A167+Control!$C$22*A167^2 -> 41.10661651 | N167: 6133.647987 | O167: 5824.352013
A168: 168 | B168: 5978 | C168: 6025 | M168: =Control!$C$20+Control!$C$21*A168+Control!$C$22*A168^2 -> 41.37592561 | N168: 6132.635054 | O168: 5823.364946
A169: 169 | B169: 5978 | C169: 6098 | M169: =Control!$C$20+Control!$C$21*A169+Control!$C$22*A169^2 -> 41.6452347 | N169: 6132.635054 | O169: 5823.364946
A170: 170 | B170: 5977 | C170: 5962 | M170: =Control!$C$20+Control!$C$21*A170+Control!$C$22*A170^2 -> 41.9145438 | N170: 6131.62212 | O170: 5822.37788
A171: 171 | B171: 5976 | C171: 6075 | M171: =Control!$C$20+Control!$C$21*A171+Control!$C$22*A171^2 -> 42.18385289 | N171: 6130.609185 | O171: 5821.390815
A172: 172 | B172: 5975 | C172: 5955 | M172: =Control!$C$20+Control!$C$21*A172+Control!$C$22*A172^2 -> 42.45316198 | N172: 6129.596248 | O172: 5820.403752
A173: 173 | B173: 5975 | C173: 6138 | M173: =Control!$C$20+Control!$C$21*A173+Control!$C$22*A173^2 -> 42.72247107 | N173: 6129.596248 | O173: 5820.403752
A174: 174 | B174: 5974 | C174: 6074 | M174: =Control!$C$20+Control!$C$21*A174+Control!$C$22*A174^2 -> 42.99178016 | N174: 6128.583311 | O174: 5819.416689
A175: 175 | B175: 5973 | C175: 6021 | M175: =Control!$C$20+Control!$C$21*A175+Control!$C$22*A175^2 -> 43.26108925 | N175: 6127.570372 | O175: 5818.429628
A176: 176 | B176: 5973 | C176: 6028 | M176: =Control!$C$20+Control!$C$21*A176+Control!$C$22*A176^2 -> 43.53039833 | N176: 6127.570372 | O176: 5818.429628
A177: 177 | B177: 5972 | C177: 5977 | M177: =Control!$C$20+Control!$C$21*A177+Control!$C$22*A177^2 -> 43.79970742 | N177: 6126.557433 | O177: 5817.442567
A178: 178 | B178: 5971 | C178: 5995 | M178: =Control!$C$20+Control!$C$21*A178+Control!$C$22*A178^2 -> 44.06901651 | N178: 6125.544492 | O178: 5816.455508
A179: 179 | B179: 5970 | C179: 5812 | M179: =Control!$C$20+Control!$C$21*A179+Control!$C$22*A179^2 -> 44.33832559 | N179: 6124.53155 | O179: 5815.46845
A180: 180 | B180: 5970 | C180: 5998 | M180: =Control!$C$20+Control!$C$21*A180+Control!$C$22*A180^2 -> 44.60763467 | N180: 6124.53155 | O180: 5815.46845
A181: 181 | B181: 5969 | C181: 6032 | M181: =Control!$C$20+Control!$C$21*A181+Control!$C$22*A181^2 -> 44.87694376 | N181: 6123.518607 | O181: 5814.481393
A182: 182 | B182: 5968 | C182: 5999 | M182: =Control!$C$20+Control!$C$21*A182+Control!$C$22*A182^2 -> 45.14625284 | N182: 6122.505663 | O182: 5813.494337
A183: 183 | B183: 5967 | C183: 6086 | M183: =Control!$C$20+Control!$C$21*A183+Control!$C$22*A183^2 -> 45.41556192 | N183: 6121.492718 | O183: 5812.507282
A184: 184 | B184: 5967 | C184: 6074 | M184: =Control!$C$20+Control!$C$21*A184+Control!$C$22*A184^2 -> 45.684871 | N184: 6121.492718 | O184: 5812.507282
A185: 185 | B185: 5966 | C185: 6103 | M185: =Control!$C$20+Control!$C$21*A185+Control!$C$22*A185^2 -> 45.95418008 | N185: 6120.479772 | O185: 5811.520228
A186: 186 | B186: 5965 | C186: 6077 | M186: =Control!$C$20+Control!$C$21*A186+Control!$C$22*A186^2 -> 46.22348915 | N186: 6119.466825 | O186: 5810.533175
A187: 187 | B187: 5964 | C187: 6048 | M187: =Control!$C$20+Control!$C$21*A187+Control!$C$22*A187^2 -> 46.49279823 | N187: 6118.453877 | O187: 5809.546123
A188: 188 | B188: 5964 | C188: 6094 | M188: =Control!$C$20+Control!$C$21*A188+Control!$C$22*A188^2 -> 46.76210731 | N188: 6118.453877 | O188: 5809.546123
A189: 189 | B189: 5963 | C189: 6123 | M189: =Control!$C$20+Control!$C$21*A189+Control!$C$22*A189^2 -> 47.03141638 | N189: 6117.440927 | O189: 5808.559073
A190: 190 | B190: 5962 | C190: 6004 | M190: =Control!$C$20+Control!$C$21*A190+Control!$C$22*A190^2 -> 47.30072546 | N190: 6116.427977 | O190: 5807.572023
A191: 191 | B191: 5962 | C191: 6080 | M191: =Control!$C$20+Control!$C$21*A191+Control!$C$22*A191^2 -> 47.57003453 | N191: 6116.427977 | O191: 5807.572023
A192: 192 | B192: 5961 | C192: 5890 | M192: =Control!$C$20+Control!$C$21*A192+Control!$C$22*A192^2 -> 47.8393436 | N192: 6115.415025 | O192: 5806.584975
A193: 193 | B193: 5960 | C193: 5989 | M193: =Control!$C$20+Control!$C$21*A193+Control!$C$22*A193^2 -> 48.10865267 | N193: 6114.402073 | O193: 5805.597927
A194: 194 | B194: 5959 | C194: 6098 | M194: =Control!$C$20+Control!$C$21*A194+Control!$C$22*A194^2 -> 48.37796174 | N194: 6113.389119 | O194: 5804.610881
A195: 195 | B195: 5959 | C195: 5783 | M195: =Control!$C$20+Control!$C$21*A195+Control!$C$22*A195^2 -> 48.64727081 | N195: =IF(D195=0,B195+2*SQRT(B195),N194) -> 6113.389119 | O195: =IF(D195=0,B195-2*SQRT(B195),O194) -> 5804.610881
A196: 196 | B196: 5958 | C196: 5934 | M196: =Control!$C$20+Control!$C$21*A196+Control!$C$22*A196^2 -> 48.91657988 | N196: 6112.376164 | O196: 5803.623836
A197: 197 | B197: 5957 | C197: 5871 | M197: =Control!$C$20+Control!$C$21*A197+Control!$C$22*A197^2 -> 49.18588895 | N197: 6111.363208 | O197: 5802.636792
A198: 198 | B198: 5956 | C198: 6019 | M198: =Control!$C$20+Control!$C$21*A198+Control!$C$22*A198^2 -> 49.45519802 | N198: 6110.350251 | O198: 5801.649749
A199: 199 | B199: 5956 | C199: 6022 | M199: =Control!$C$20+Control!$C$21*A199+Control!$C$22*A199^2 -> 49.72450708 | N199: 6110.350251 | O199: 5801.649749
A200: 200 | B200: 5955 | C200: 6060 | M200: =Control!$C$20+Control!$C$21*A200+Control!$C$22*A200^2 -> 49.99381615 | N200: 6109.337293 | O200: 5800.662707
... 4280 more rows

Sheet Check
B2: SpecMaker - Check Consistency of Results
B3: =CELL("filename",B2) -> C:\Temp Files\SpecMaker 2025\specmaker 2025\[SpecMaker 2025.xlsm]Check
B4: Spreadsheet prepared by Dr. Gordon Gilmore of Nuclear Training Services Ltd. | I4: Only take notice of this sheet if there is no gradient on the continuum and there are no peaks superimposed.
B6: Bin Edge | C6: Centre | D6: Bin Edge | E6: Frequency | F6: Frequency | G6: Theor. | H6: Difference
B7: in SU units | C7: of Bin | D7: Counts | E7: No. Cts | F7: % | G7: %
B8: Bin Hwidth: | C8: -0.25
B9: =-4 -> -4 | C9: =B9+$C$8 -> -4.25 | D9: =INT(Control!$C$9+Check!B9*SQRT(Control!$C$9)) -> 5787 | E9: =FREQUENCY(Spectrum!C2:C8193,D9:D26) -> 7713 | F9: =E9/$E$27 -> 0.9417582418 | G9: =EXP(-((B9-0.25)^2)/2)/SQRT(2*PI())/2 -> 2.385931827e-05 | H9: =(F9-G9) -> 0.9417343824
B10: =B9+0.5 -> -3.5 | C10: -3.75 | D10: =INT(Control!$C$9+Check!B10*SQRT(Control!$C$9)) -> 5826 | E10: 59 | F10: 0.007203907204 | G10: 0.0001762978412 | H10: 0.007027609363
B11: -3 | C11: -3.25 | D11: =INT(Control!$C$9+Check!B11*SQRT(Control!$C$9)) -> 5865 | E11: 51 | F11: 0.006227106227 | G11: 0.001014524029 | H11: 0.005212582198
B12: -2.5 | C12: -2.75 | D12: =INT(Control!$C$9+Check!B12*SQRT(Control!$C$9)) -> 5904 | E12: 60 | F12: 0.007326007326 | G12: 0.004546781251 | H12: 0.002779226075
B13: -2 | C13: -2.25 | D13: =INT(Control!$C$9+Check!B13*SQRT(Control!$C$9)) -> 5943 | E13: 49 | F13: 0.005982905983 | G13: 0.01586982592 | H13: -0.009886919935
B14: -1.5 | C14: -1.75 | D14: =INT(Control!$C$9+Check!B14*SQRT(Control!$C$9)) -> 5982 | E14: 49 | F14: 0.005982905983 | G14: 0.04313865941 | H14: -0.03715575343
B15: -1 | C15: -1.25 | D15: =INT(Control!$C$9+Check!B15*SQRT(Control!$C$9)) -> 6021 | E15: 56 | F15: 0.006837606838 | G15: 0.09132454269 | H15: -0.08448693586
B16: -0.5 | C16: -0.75 | D16: =INT(Control!$C$9+Check!B16*SQRT(Control!$C$9)) -> 6060 | E16: 51 | F16: 0.006227106227 | G16: 0.1505687161 | H16: -0.1443416099
B17: 0 | C17: -0.25 | D17: =INT(Control!$C$9+Check!B17*SQRT(Control!$C$9)) -> 6100 | E17: 35 | F17: 0.004273504274 | G17: 0.1933340584 | H17: -0.1890605541
B18: 0.5 | C18: 0.25 | D18: =INT(Control!$C$9+Check!B18*SQRT(Control!$C$9)) -> 6139 | E18: 25 | F18: 0.003052503053 | G18: 0.1933340584 | H18: -0.1902815553
B19: 1 | C19: 0.75 | D19: =INT(Control!$C$9+Check!B19*SQRT(Control!$C$9)) -> 6178 | E19: 12 | F19: 0.001465201465 | G19: 0.1505687161 | H19: -0.1491035146
B20: 1.5 | C20: 1.25 | D20: =INT(Control!$C$9+Check!B20*SQRT(Control!$C$9)) -> 6217 | E20: 3 | F20: 0.0003663003663 | G20: 0.09132454269 | H20: -0.09095824233
B21: 2 | C21: 1.75 | D21: =INT(Control!$C$9+Check!B21*SQRT(Control!$C$9)) -> 6256 | E21: 3 | F21: 0.0003663003663 | G21: 0.04313865941 | H21: -0.04277235905
B22: 2.5 | C22: 2.25 | D22: =INT(Control!$C$9+Check!B22*SQRT(Control!$C$9)) -> 6295 | E22: 1 | F22: 0.0001221001221 | G22: 0.01586982592 | H22: -0.0157477258
B23: 3 | C23: 2.75 | D23: =INT(Control!$C$9+Check!B23*SQRT(Control!$C$9)) -> 6334 | E23: 1 | F23: 0.0001221001221 | G23: 0.004546781251 | H23: -0.004424681129
B24: 3.5 | C24: 3.25 | D24: =INT(Control!$C$9+Check!B24*SQRT(Control!$C$9)) -> 6373 | E24: 2 | F24: 0.0002442002442 | G24: 0.001014524029 | H24: -0.0007703237844
B25: 4 | C25: 3.75 | D25: =INT(Control!$C$9+Check!B25*SQRT(Control!$C$9)) -> 6412 | E25: 1 | F25: 0.0001221001221 | G25: 0.0001762978412 | H25: -5.419771908e-05
B26: Above | E26: 19 | F26: 0.00231990232
D27: Total Counts: | E27: =SUM(E9:E26) -> 8190 | H27: =SQRT(SUMSQ(H9:H25)/COUNT(H9:H25)) -> 0.2450633335
D29: Total counts before randomization: | E29: =SUM(Spectrum!B2:B8193) -> 25622033
D30: Total counts afterwards: | E30: =SUM(Spectrum!C2:C8193) -> 25634294 | J30: Press F9 to re-scatter the data
D31: Difference: | E31: =E30-E29 -> 12261 | F31: =E31/E29 -> 0.000478533456
D32: Standard Uncertainty: | E32: =SQRT(D17) -> 78.10249676 | F32: counts in each channel

Sheet Assessment
B2: SpecMaker - Spectrum Analysis Assessment | J2: =IF(F6<>"",F6,"") -> 0
B3: =CELL("filename",B2) -> C:\Temp Files\SpecMaker 2025\specmaker 2025\[SpecMaker 2025.xlsm]Assessment | J3: =IF(E7<>"",E7,"") -> 
B4: Spreadsheet prepared by Dr. Gordon Gilmore
F6: =Control!C32 -> 0 | H6: Peak Analysis
D7: Analysis Program: | J7: Number of peaks created: | K7: =COUNT(D21:D70) -> 0
D8: Version: | J8: Number of measured peaks: | K8: =M72 -> 0
D9: Date of Analysis: | E9: =NOW() -> 2025-02-10T11:40:03.970 | J9: Number of missed peaks: | K9: =K7-K8 -> 0
D10: Comments: | J10: Number of spurious peaks: | K10: 0
D11: Energy Calibration: | E11: =Control!C21 -> 0.2693092525 | F11: keV/ch | J11: Peak Detection Index (Target =1): | K11: =IF(K7>0,(K8-K10)/K7,"") -> 
C13: Centroid and FWHM Differences | I13: Area Estimation
F14: Channels | G14: keV | J14: Centroid of Distribution: | K14: =IF(M72>0,Stats!$L$25,"") -> 
E15: RMS Centroid Difference: | F15: =IF(K8>2,P72/E11,"") ->  | G15: =IF(F15<>"",P72,"") ->  | I15: =IF(M72>0,Stats!M20,"") -> 
E16: RMS FWHM differences: | G16: =IF(K8>2,Q72,"") ->  | I16: =IFERROR("",VLOOKUP(ABS(K15),Stats!$J$37:$K$42,2)) -> 
C18: Requested Values | G18: Given Values | I18: Measured Values | N18: Assessments
C19: Peak Energy | D19: Peak Area | E19: Peak Centroid | F19: FWHM | G19: Peak Area | H19: Peak Centroid | I19: Peak Energy | J19: Peak Area | K19: Std. Uncert | L19: Peak Centroid | M19: FWHM | N19: Peak Area | O19: Significance | P19: Centroid Difference | Q19: FWHM Diffs | R19: Pk. Area Ratio
C20: (keV) | D20: (counts) | E20: (channels) | F20: (keV) | G20: (counts) | H20: (channels) | I20: (keV) | J20: (counts) | K20: (%) | L20: (channels) | M20: (keV) | N20: z-score | P20: (keV) | Q20: (keV)
B21: 1 | C21: =IF(Control!H9<>"",Control!H9,"") ->  | D21: =IF(Control!I9<>"",Control!I9,"") ->  | E21: =Control!J9 ->  | F21: =Control!K9 ->  | G21: =IF(Control!Q9<>"",Control!Q9,"") -> 9995 | H21: =IF(Control!P9<>"",Control!P9,"") -> 385.6849425 | N21: =IF(AND(J21<>"",K21<>""),(J21-G21)/(K21*J21),"") ->  | O21: =IF(N21<>"",VLOOKUP(ABS(N21),Stats!$J$37:$K$42,2),"") ->  | P21: =IF(L21<>"",(I21-C21),"") ->  | Q21: =IF(M21<>"",(M21-F21),"") ->  | R21: =IF(J21<>"",(J21/D21)^2,"") -> 
B22: 2 | C22: =IF(Control!H10<>"",Control!H10,"") ->  | D22: =IF(Control!I10<>"",Control!I10,"") ->  | E22: =Control!J10 ->  | F22: =Control!K10 ->  | G22: =IF(Control!Q10<>"",Control!Q10,"") -> 7994 | H22: =IF(Control!P10<>"",Control!P10,"") -> 534.2100325 | N22: =IF(AND(J22<>"",K22<>""),(J22-G22)/(K22*J22),"") ->  | O22: =IF(N22<>"",VLOOKUP(ABS(N22),Stats!$J$37:$K$42,2),"") ->  | P22: =IF(L22<>"",(I22-C22),"") ->  | Q22: =IF(M22<>"",(M22-F22),"") ->  | R22: =IF(J22<>"",(J22/D22)^2,"") -> 
B23: 3 | C23: =IF(Control!H11<>"",Control!H11,"") ->  | D23: =IF(Control!I11<>"",Control!I11,"") ->  | E23: =Control!J11 ->  | F23: =Control!K11 ->  | G23: =IF(Control!Q11<>"",Control!Q11,"") -> 5993 | H23: =IF(Control!P11<>"",Control!P11,"") -> 682.7438678 | O23: =IF(N23<>"",VLOOKUP(ABS(N23),Stats!$J$37:$K$42,2),"") -> 
B24: 4 | C24: =IF(Control!H12<>"",Control!H12,"") ->  | D24: =IF(Control!I12<>"",Control!I12,"") ->  | E24: =Control!J12 ->  | F24: =Control!K12 ->  | G24: =IF(Control!Q12<>"",Control!Q12,"") -> 3993 | H24: =IF(Control!P12<>"",Control!P12,"") -> 831.2642124 | N24: =IF(AND(J24<>"",K24<>""),(J24-G24)/(K24*J24),"") ->  | O24: =IF(N24<>"",VLOOKUP(ABS(N24),Stats!$J$37:$K$42,2),"") -> 
B25: 5 | C25: =IF(Control!H13<>"",Control!H13,"") ->  | D25: =IF(Control!I13<>"",Control!I13,"") ->  | E25: =Control!J13 ->  | F25: =Control!K13 ->  | G25: =IF(Control!Q13<>"",Control!Q13,"") -> 1999 | H25: =IF(Control!P13<>"",Control!P13,"") -> 979.7948974 | O25: =IF(N25<>"",VLOOKUP(ABS(N25),Stats!$J$37:$K$42,2),"") -> 
B26: 6 | C26: =IF(Control!H14<>"",Control!H14,"") ->  | D26: =IF(Control!I14<>"",Control!I14,"") ->  | E26: =Control!J14 ->  | F26: =Control!K14 ->  | G26: =IF(Control!Q14<>"",Control!Q14,"") -> 1000 | H26: =IF(Control!P14<>"",Control!P14,"") -> 1128.324 | O26: =IF(N26<>"",VLOOKUP(ABS(N26),Stats!$J$37:$K$42,2),"") -> 
B27: 7 | C27: =IF(Control!H15<>"",Control!H15,"") ->  | D27: =IF(Control!I15<>"",Control!I15,"") ->  | E27: =Control!J15 ->  | F27: =Control!K15 ->  | G27: =IF(Control!Q15<>"",Control!Q15,"") -> 501 | H27: =IF(Control!P15<>"",Control!P15,"") -> 1276.864271 | O27: =IF(N27<>"",VLOOKUP(ABS(N27),Stats!$J$37:$K$42,2),"") -> 
B28: 8 | C28: =IF(Control!H16<>"",Control!H16,"") ->  | D28: =IF(Control!I16<>"",Control!I16,"") ->  | E28: =Control!J16 ->  | F28: =Control!K16 ->  | G28: =IF(Control!Q16<>"",Control!Q16,"") -> 9987 | H28: =IF(Control!P16<>"",Control!P16,"") -> 1425.378692 | O28: =IF(N28<>"",VLOOKUP(ABS(N28),Stats!$J$37:$K$42,2),"") -> 
B29: 9 | C29: =IF(Control!H17<>"",Control!H17,"") ->  | D29: =IF(Control!I17<>"",Control!I17,"") ->  | E29: =Control!J17 ->  | F29: =Control!K17 ->  | G29: =IF(Control!Q17<>"",Control!Q17,"") -> 7988 | H29: =IF(Control!P17<>"",Control!P17,"") -> 1573.913871 | O29: =IF(N29<>"",VLOOKUP(ABS(N29),Stats!$J$37:$K$42,2),"") -> 
B30: 10 | C30: =IF(Control!H18<>"",Control!H18,"") ->  | D30: =IF(Control!I18<>"",Control!I18,"") ->  | E30: =Control!J18 ->  | F30: =Control!K18 ->  | G30: =IF(Control!Q18<>"",Control!Q18,"") -> 5984 | H30: =IF(Control!P18<>"",Control!P18,"") -> 1722.431818 | O30: =IF(N30<>"",VLOOKUP(ABS(N30),Stats!$J$37:$K$42,2),"") -> 
B31: 11 | C31: =IF(Control!H19<>"",Control!H19,"") ->  | D31: =IF(Control!I19<>"",Control!I19,"") ->  | E31: =Control!J19 ->  | F31: =Control!K19 ->  | G31: =IF(Control!Q19<>"",Control!Q19,"") -> 3989 | H31: =IF(Control!P19<>"",Control!P19,"") -> 1911.818501 | O31: =IF(N31<>"",VLOOKUP(ABS(N31),Stats!$J$37:$K$42,2),"") -> 
B32: 12 | C32: =IF(Control!H20<>"",Control!H20,"") ->  | D32: =IF(Control!I20<>"",Control!I20,"") ->  | E32: =Control!J20 ->  | F32: =Control!K20 ->  | G32: =IF(Control!Q20<>"",Control!Q20,"") -> 1999 | H32: =IF(Control!P20<>"",Control!P20,"") -> 2019.496748 | O32: =IF(N32<>"",VLOOKUP(ABS(N32),Stats!$J$37:$K$42,2),"") -> 
B33: 13 | C33: =IF(Control!H21<>"",Control!H21,"") ->  | D33: =IF(Control!I21<>"",Control!I21,"") ->  | E33: =Control!J21 ->  | F33: =Control!K21 ->  | G33: =IF(Control!Q21<>"",Control!Q21,"") -> 1000 | H33: =IF(Control!P21<>"",Control!P21,"") -> 2168.024 | O33: =IF(N33<>"",VLOOKUP(ABS(N33),Stats!$J$37:$K$42,2),"") -> 
B34: 14 | C34: =IF(Control!H22<>"",Control!H22,"") ->  | D34: =IF(Control!I22<>"",Control!I22,"") ->  | E34: =Control!J22 ->  | F34: =Control!K22 ->  | G34: =IF(Control!Q22<>"",Control!Q22,"") -> 500 | H34: =IF(Control!P22<>"",Control!P22,"") -> 2316.58 | O34: =IF(N34<>"",VLOOKUP(ABS(N34),Stats!$J$37:$K$42,2),"") -> 
B35: 15 | C35: =IF(Control!H23<>"",Control!H23,"") ->  | D35: =IF(Control!I23<>"",Control!I23,"") ->  | E35: =Control!J23 ->  | F35: =Control!K23 ->  | G35: =IF(Control!Q23<>"",Control!Q23,"") -> 9985 | H35: =IF(Control!P23<>"",Control!P23,"") -> 2465.086229 | O35: =IF(N35<>"",VLOOKUP(ABS(N35),Stats!$J$37:$K$42,2),"") -> 
B36: 16 | C36: =IF(Control!H24<>"",Control!H24,"") ->  | D36: =IF(Control!I24<>"",Control!I24,"") ->  | E36: =Control!J24 ->  | F36: =Control!K24 ->  | G36: =IF(Control!Q24<>"",Control!Q24,"") -> 7981 | H36: =IF(Control!P24<>"",Control!P24,"") -> 2613.626739 | O36: =IF(N36<>"",VLOOKUP(ABS(N36),Stats!$J$37:$K$42,2),"") -> 
B37: 17 | C37: =IF(Control!H25<>"",Control!H25,"") ->  | D37: =IF(Control!I25<>"",Control!I25,"") ->  | E37: =Control!J25 ->  | F37: =Control!K25 ->  | G37: =IF(Control!Q25<>"",Control!Q25,"") -> 5985 | H37: =IF(Control!P25<>"",Control!P25,"") -> 2762.143024 | O37: =IF(N37<>"",VLOOKUP(ABS(N37),Stats!$J$37:$K$42,2),"") -> 
B38: 18 | C38: =IF(Control!H26<>"",Control!H26,"") ->  | D38: =IF(Control!I26<>"",Control!I26,"") ->  | E38: =Control!J26 ->  | F38: =Control!K26 ->  | G38: =IF(Control!Q26<>"",Control!Q26,"") -> 3997 | H38: =IF(Control!P26<>"",Control!P26,"") -> 2910.678259 | O38: =IF(N38<>"",VLOOKUP(ABS(N38),Stats!$J$37:$K$42,2),"") -> 
B39: 19 | C39: =IF(Control!H27<>"",Control!H27,"") ->  | D39: =IF(Control!I27<>"",Control!I27,"") ->  | E39: =Control!J27 ->  | F39: =Control!K27 ->  | G39: =IF(Control!Q27<>"",Control!Q27,"") -> 1999 | H39: =IF(Control!P27<>"",Control!P27,"") -> 3059.203602 | O39: =IF(N39<>"",VLOOKUP(ABS(N39),Stats!$J$37:$K$42,2),"") -> 
B40: 20 | C40: =IF(Control!H28<>"",Control!H28,"") ->  | D40: =IF(Control!I28<>"",Control!I28,"") ->  | E40: =Control!J28 ->  | F40: =Control!K28 ->  | G40: =IF(Control!Q28<>"",Control!Q28,"") -> 999 | H40: =IF(Control!P28<>"",Control!P28,"") -> 3207.735736 | O40: =IF(N40<>"",VLOOKUP(ABS(N40),Stats!$J$37:$K$42,2),"") -> 
B41: 21 | C41: =IF(Control!H29<>"",Control!H29,"") ->  | D41: =IF(Control!I29<>"",Control!I29,"") ->  | E41: =Control!J29 ->  | F41: =Control!K29 ->  | G41: =IF(Control!Q29<>"",Control!Q29,"") -> 500 | H41: =IF(Control!P29<>"",Control!P29,"") -> 3356.262 | O41: =IF(N41<>"",VLOOKUP(ABS(N41),Stats!$J$37:$K$42,2),"") -> 
B42: 22 | C42: =IF(Control!H30<>"",Control!H30,"") ->  | D42: =IF(Control!I30<>"",Control!I30,"") ->  | E42: =Control!J30 ->  | F42: =Control!K30 ->  | G42: =IF(Control!Q30<>"",Control!Q30,"") -> 9981 | H42: =IF(Control!P30<>"",Control!P30,"") -> 3504.799519 | O42: =IF(N42<>"",VLOOKUP(ABS(N42),Stats!$J$37:$K$42,2),"") -> 
B43: 23 | C43: =IF(Control!H31<>"",Control!H31,"") ->  | D43: =IF(Control!I31<>"",Control!I31,"") ->  | E43: =Control!J31 ->  | F43: =Control!K31 ->  | G43: =IF(Control!Q31<>"",Control!Q31,"") -> 7978 | H43: =IF(Control!P31<>"",Control!P31,"") -> 3653.317247 | O43: =IF(N43<>"",VLOOKUP(ABS(N43),Stats!$J$37:$K$42,2),"") -> 
B44: 24 | C44: =IF(Control!H32<>"",Control!H32,"") ->  | D44: =IF(Control!I32<>"",Control!I32,"") ->  | E44: =Control!J32 ->  | F44: =Control!K32 ->  | G44: =IF(Control!Q32<>"",Control!Q32,"") -> 5984 | H44: =IF(Control!P32<>"",Control!P32,"") -> 3801.858623 | O44: =IF(N44<>"",VLOOKUP(ABS(N44),Stats!$J$37:$K$42,2),"") -> 
B45: 25 | C45: =IF(Control!H33<>"",Control!H33,"") ->  | D45: =IF(Control!I33<>"",Control!I33,"") ->  | E45: =Control!J33 ->  | F45: =Control!K33 ->  | G45: =IF(Control!Q33<>"",Control!Q33,"") -> 3984 | H45: =IF(Control!P33<>"",Control!P33,"") -> 3950.371988 | O45: =IF(N45<>"",VLOOKUP(ABS(N45),Stats!$J$37:$K$42,2),"") -> 
B46: 26 | C46: =IF(Control!H34<>"",Control!H34,"") ->  | D46: =IF(Control!I34<>"",Control!I34,"") ->  | E46: =Control!J34 ->  | F46: =Control!K34 ->  | G46: =IF(Control!Q34<>"",Control!Q34,"") -> 1996 | H46: =IF(Control!P34<>"",Control!P34,"") -> 4098.91984 | O46: =IF(N46<>"",VLOOKUP(ABS(N46),Stats!$J$37:$K$42,2),"") -> 
B47: 27 | C47: =IF(Control!H35<>"",Control!H35,"") ->  | D47: =IF(Control!I35<>"",Control!I35,"") ->  | E47: =Control!J35 ->  | F47: =Control!K35 ->  | G47: =IF(Control!Q35<>"",Control!Q35,"") -> 998 | H47: =IF(Control!P35<>"",Control!P35,"") -> 4247.441884 | O47: =IF(N47<>"",VLOOKUP(ABS(N47),Stats!$J$37:$K$42,2),"") -> 
B48: 28 | C48: =IF(Control!H36<>"",Control!H36,"") ->  | D48: =IF(Control!I36<>"",Control!I36,"") ->  | E48: =Control!J36 ->  | F48: =Control!K36 ->  | G48: =IF(Control!Q36<>"",Control!Q36,"") -> 499 | H48: =IF(Control!P36<>"",Control!P36,"") -> 4395.967936 | O48: =IF(N48<>"",VLOOKUP(ABS(N48),Stats!$J$37:$K$42,2),"") -> 
B49: 29 | C49: =IF(Control!H37<>"",Control!H37,"") ->  | D49: =IF(Control!I37<>"",Control!I37,"") ->  | E49: =Control!J37 ->  | F49: =Control!K37 ->  | G49: =IF(Control!Q37<>"",Control!Q37,"") -> 9978 | H49: =IF(Control!P37<>"",Control!P37,"") -> 4544.516737 | O49: =IF(N49<>"",VLOOKUP(ABS(N49),Stats!$J$37:$K$42,2),"") -> 
B50: 30 | C50: =IF(Control!H38<>"",Control!H38,"") ->  | D50: =IF(Control!I38<>"",Control!I38,"") ->  | E50: =Control!J38 ->  | F50: =Control!K38 ->  | G50: =IF(Control!Q38<>"",Control!Q38,"") -> 7982 | H50: =IF(Control!P38<>"",Control!P38,"") -> 4693.036206 | O50: =IF(N50<>"",VLOOKUP(ABS(N50),Stats!$J$37:$K$42,2),"") -> 
B51: 31 | C51: =IF(Control!H39<>"",Control!H39,"") ->  | D51: =IF(Control!I39<>"",Control!I39,"") ->  | E51: =Control!J39 ->  | F51: =Control!K39 ->  | G51: =IF(Control!Q39<>"",Control!Q39,"") -> 5985 | H51: =IF(Control!P39<>"",Control!P39,"") -> 4841.580117 | O51: =IF(N51<>"",VLOOKUP(ABS(N51),Stats!$J$37:$K$42,2),"") -> 
B52: 32 | C52: =IF(Control!H40<>"",Control!H40,"") ->  | D52: =IF(Control!I40<>"",Control!I40,"") ->  | E52: =Control!J40 ->  | F52: =Control!K40 ->  | G52: =IF(Control!Q40<>"",Control!Q40,"") -> 3986 | H52: =IF(Control!P40<>"",Control!P40,"") -> 4990.09433 | O52: =IF(N52<>"",VLOOKUP(ABS(N52),Stats!$J$37:$K$42,2),"") -> 
B53: 33 | C53: =IF(Control!H41<>"",Control!H41,"") ->  | D53: =IF(Control!I41<>"",Control!I41,"") ->  | E53: =Control!J41 ->  | F53: =Control!K41 ->  | G53: =IF(Control!Q41<>"",Control!Q41,"") -> 1992 | H53: =IF(Control!P41<>"",Control!P41,"") -> 5138.649598 | O53: =IF(N53<>"",VLOOKUP(ABS(N53),Stats!$J$37:$K$42,2),"") -> 
B54: 34 | C54: =IF(Control!H42<>"",Control!H42,"") ->  | D54: =IF(Control!I42<>"",Control!I42,"") ->  | E54: =Control!J42 ->  | F54: =Control!K42 ->  | G54: =IF(Control!Q42<>"",Control!Q42,"") -> 1000 | H54: =IF(Control!P42<>"",Control!P42,"") -> 5287.168 | O54: =IF(N54<>"",VLOOKUP(ABS(N54),Stats!$J$37:$K$42,2),"") -> 
B55: 35 | C55: =IF(Control!H43<>"",Control!H43,"") ->  | D55: =IF(Control!I43<>"",Control!I43,"") ->  | E55: =Control!J43 ->  | F55: =Control!K43 ->  | G55: =IF(Control!Q43<>"",Control!Q43,"") -> 499 | H55: =IF(Control!P43<>"",Control!P43,"") -> 5435.707415 | O55: =IF(N55<>"",VLOOKUP(ABS(N55),Stats!$J$37:$K$42,2),"") -> 
B56: 36 | C56: =IF(Control!H44<>"",Control!H44,"") ->  | D56: =IF(Control!I44<>"",Control!I44,"") ->  | E56: =Control!J44 ->  | F56: =Control!K44 ->  | G56: =IF(Control!Q44<>"",Control!Q44,"") -> 9981 | H56: =IF(Control!P44<>"",Control!P44,"") -> 5584.217513 | O56: =IF(N56<>"",VLOOKUP(ABS(N56),Stats!$J$37:$K$42,2),"") -> 
B57: 37 | C57: =IF(Control!H45<>"",Control!H45,"") ->  | D57: =IF(Control!I45<>"",Control!I45,"") ->  | E57: =Control!J45 ->  | F57: =Control!K45 ->  | G57: =IF(Control!Q45<>"",Control!Q45,"") -> 7982 | H57: =IF(Control!P45<>"",Control!P45,"") -> 5732.758331 | O57: =IF(N57<>"",VLOOKUP(ABS(N57),Stats!$J$37:$K$42,2),"") -> 
B58: 38 | C58: =IF(Control!H46<>"",Control!H46,"") ->  | D58: =IF(Control!I46<>"",Control!I46,"") ->  | E58: =Control!J46 ->  | F58: =Control!K46 ->  | G58: =IF(Control!Q46<>"",Control!Q46,"") -> 5984 | H58: =IF(Control!P46<>"",Control!P46,"") -> 5881.278075 | O58: =IF(N58<>"",VLOOKUP(ABS(N58),Stats!$J$37:$K$42,2),"") -> 
B59: 39 | C59: =IF(Control!H47<>"",Control!H47,"") ->  | D59: =IF(Control!I47<>"",Control!I47,"") ->  | E59: =Control!J47 ->  | F59: =Control!K47 ->  | G59: =IF(Control!Q47<>"",Control!Q47,"") -> 3990 | H59: =IF(Control!P47<>"",Control!P47,"") -> 6029.822556 | O59: =IF(N59<>"",VLOOKUP(ABS(N59),Stats!$J$37:$K$42,2),"") -> 
B60: 40 | C60: =IF(Control!H48<>"",Control!H48,"") ->  | D60: =IF(Control!I48<>"",Control!I48,"") ->  | E60: =Control!J48 ->  | F60: =Control!K48 ->  | G60: =IF(Control!Q48<>"",Control!Q48,"") -> 1995 | H60: =IF(Control!P48<>"",Control!P48,"") -> 6178.333333 | O60: =IF(N60<>"",VLOOKUP(ABS(N60),Stats!$J$37:$K$42,2),"") -> 
B61: 41 | C61: =IF(Control!H49<>"",Control!H49,"") ->  | D61: =IF(Control!I49<>"",Control!I49,"") ->  | E61: =Control!J49 ->  | F61: =Control!K49 ->  | G61: =IF(Control!Q49<>"",Control!Q49,"") -> 995 | H61: =IF(Control!P49<>"",Control!P49,"") -> 6326.881407 | O61: =IF(N61<>"",VLOOKUP(ABS(N61),Stats!$J$37:$K$42,2),"") -> 
B62: 42 | C62: =IF(Control!H50<>"",Control!H50,"") ->  | D62: =IF(Control!I50<>"",Control!I50,"") ->  | E62: =Control!J50 ->  | F62: =Control!K50 ->  | G62: =IF(Control!Q50<>"",Control!Q50,"") -> 496 | H62: =IF(Control!P50<>"",Control!P50,"") -> 6475.403226 | O62: =IF(N62<>"",VLOOKUP(ABS(N62),Stats!$J$37:$K$42,2),"") -> 
B63: 43 | C63: =IF(Control!H51<>"",Control!H51,"") ->  | D63: =IF(Control!I51<>"",Control!I51,"") ->  | E63: =Control!J51 ->  | F63: =Control!K51 ->  | G63: =IF(Control!Q51<>"",Control!Q51,"") -> 9984 | H63: =IF(Control!P51<>"",Control!P51,"") -> 6623.942808 | O63: =IF(N63<>"",VLOOKUP(ABS(N63),Stats!$J$37:$K$42,2),"") -> 
B64: 44 | C64: =IF(Control!H52<>"",Control!H52,"") ->  | D64: =IF(Control!I52<>"",Control!I52,"") ->  | E64: =Control!J52 ->  | F64: =Control!K52 ->  | G64: =IF(Control!Q52<>"",Control!Q52,"") -> 7985 | H64: =IF(Control!P52<>"",Control!P52,"") -> 6772.463494 | O64: =IF(N64<>"",VLOOKUP(ABS(N64),Stats!$J$37:$K$42,2),"") -> 
B65: 45 | C65: =IF(Control!H53<>"",Control!H53,"") ->  | D65: =IF(Control!I53<>"",Control!I53,"") ->  | E65: =Control!J53 ->  | F65: =Control!K53 ->  | G65: =IF(Control!Q53<>"",Control!Q53,"") -> 5988 | H65: =IF(Control!P53<>"",Control!P53,"") -> 6921.005845 | O65: =IF(N65<>"",VLOOKUP(ABS(N65),Stats!$J$37:$K$42,2),"") -> 
B66: 46 | C66: =IF(Control!H54<>"",Control!H54,"") ->  | D66: =IF(Control!I54<>"",Control!I54,"") ->  | E66: =Control!J54 ->  | F66: =Control!K54 ->  | G66: =IF(Control!Q54<>"",Control!Q54,"") -> 3991 | H66: =IF(Control!P54<>"",Control!P54,"") -> 7069.550739 | O66: =IF(N66<>"",VLOOKUP(ABS(N66),Stats!$J$37:$K$42,2),"") -> 
B67: 47 | C67: =IF(Control!H55<>"",Control!H55,"") ->  | D67: =IF(Control!I55<>"",Control!I55,"") ->  | E67: =Control!J55 ->  | F67: =Control!K55 ->  | G67: =IF(Control!Q55<>"",Control!Q55,"") -> 1996 | H67: =IF(Control!P55<>"",Control!P55,"") -> 7218.058617 | O67: =IF(N67<>"",VLOOKUP(ABS(N67),Stats!$J$37:$K$42,2),"") -> 
B68: 48 | C68: =IF(Control!H56<>"",Control!H56,"") ->  | D68: =IF(Control!I56<>"",Control!I56,"") ->  | E68: =Control!J56 ->  | F68: =Control!K56 ->  | G68: =IF(Control!Q56<>"",Control!Q56,"") -> 996 | H68: =IF(Control!P56<>"",Control!P56,"") -> 7366.609438 | O68: =IF(N68<>"",VLOOKUP(ABS(N68),Stats!$J$37:$K$42,2),"") -> 
B69: 49 | C69: =IF(Control!H57<>"",Control!H57,"") ->  | D69: =IF(Control!I57<>"",Control!I57,"") ->  | E69: =Control!J57 ->  | F69: =Control!K57 ->  | G69: =IF(Control!Q57<>"",Control!Q57,"") -> 499 | H69: =IF(Control!P57<>"",Control!P57,"") -> 7515.118236 | O69: =IF(N69<>"",VLOOKUP(ABS(N69),Stats!$J$37:$K$42,2),"") -> 
B70: 50 | C70: =IF(Control!H58<>"",Control!H58,"") ->  | D70: =IF(Control!I58<>"",Control!I58,"") ->  | E70: =Control!J58 ->  | F70: =Control!K58 ->  | G70: =IF(Control!Q58<>"",Control!Q58,"") -> 9961 | H70: =IF(Control!P58<>"",Control!P58,"") -> 7663.676438 | O70: =IF(N70<>"",VLOOKUP(ABS(N70),Stats!$J$37:$K$42,2),"") -> 
G71: Counts | J71: Area (counts) | K71: %RSD | M71: Count | P71: RMS Cent Diff keV | Q71: RMS FWHM | R71: Area Ratio
F72: Mean: | G72: =IF($M$72>0,AVERAGE(G21:G70),"") ->  | J72: =IF($M$72>0,AVERAGE(J21:J70),"") ->  | K72: =IF($M$72>0,AVERAGE(K21:K70),"") ->  | M72: =COUNT(L21:L70) -> 0 | O72: RMS Deviations: | P72: =IF($M$72>0,SQRT(SUMSQ(P21:P70)/P73),"") ->  | Q72: =IF(Q73<>0,SQRT(SUMSQ(Q21:Q70)/Q73),"") ->  | R72: =IF($M$72>0,SQRT(AVERAGE(R21:R70)),"") -> 
F73: Stdev: | G73: =IF($M$72>0,STDEV(G21:G70),"") ->  | J73: =IF($M$72>0,STDEV(J21:J70),"") ->  | K73: =IF($M$72>0,STDEV(K21:K70),"") ->  | O73: Number Items: | P73: =COUNT(L21:L70) -> 0 | Q73: =COUNT(M21:M70) -> 0 | R73: =COUNT(N21:N70) -> 0
F74: %RSD: | G74: =IF($M$72>0,G73/G72,"") ->  | J74: =IF($M$72>0,J73/J72,"") ->  | K74: =IF($M$72>0,K73/K72,"") -> 

Sheet Stats
A1: Assessment of Variable Items
K2: =Assessment!J2 -> 0
B3: Averages: | C3: =AVERAGE(C8:C57) ->  | D3: =AVERAGE(D8:D57) ->  | E3: =AVERAGE(E8:E57) ->  | G3: =AVERAGE(G8:G57) ->  | K3: =Assessment!J3 ->  | U3: -3.5 | V3: 0
B4: St. Unc: | C4: =STDEV(C8:C57) ->  | D4: =STDEV(D8:D57) ->  | E4: =STDEV(E8:E57) ->  | F4: =COUNT(F8:F57) -> 0 | J4: Bin | K4: Found | L4: Bin*Found | M4: Fraction | N4: Theoretical | U4: -3.5 | V4: 0.005977006485
B5: RSD% | C5: =C4/C3 ->  | D5: =D4/D3 ->  | E5: =E4/E3 ->  | F5: Peaks | U5: -2.5 | V5: 0.005977006485
I6: =I7-$E$4 ->  | J6: -4 | K6: =FREQUENCY(E8:E56,I6:I15) -> 0 | L6: =K6*J6 -> 0 | M6: =K6/$K$17 ->  | N6: 0.0002292725706 | U6: -2.5 | V6: 0
A7: Item | B7: Expected | C7: Measured | D7: %RSD | E7: Ratio | F7: Diff | G7: Z-score | I7: =I8-$E$4 ->  | J7: -3 | K7: 0 | L7: 0 | M7: =K7/$K$17 ->  | N7: 0.005977006485 | U7: -2.5 | V7: 0.06059754893
A8: =IF(B8<>"",1,"") -> 1 | B8: =Assessment!G21 -> 9995 | C8: =IF(Assessment!J21<>"",Assessment!J21,"") ->  | D8: =IF(C8<>"",Assessment!K21,"") ->  | E8: =IF(C8<>"",C8/B8,"") ->  | F8: =IF(C8<>"",C8-B8,"") ->  | G8: =IF(C8<>"",(C8-B8)/(C8*D8),"") ->  | I8: =I9-$E$4 ->  | J8: -2 | N8: 0.06059754893 | U8: -1.5 | V8: 0.06059754893
A9: =IF(B9<>"",A8+1,"") -> 2 | B9: =Assessment!G22 -> 7994 | C9: =IF(Assessment!J22<>"",Assessment!J22,"") ->  | D9: =IF(C9<>"",Assessment!K22,"") ->  | E9: =IF(C9<>"",C9/B9,"") ->  | F9: =IF(C9<>"",C9-B9,"") ->  | G9: =IF(C9<>"",(C9-B9)/(C9*D9),"") ->  | I9: =1-E4/2 ->  | J9: -1 | M9: =K9/$K$17 ->  | N9: 0.2417303038 | U9: -1.5 | V9: 0
A10: 3 | B10: =Assessment!G23 -> 5993 | C10: =IF(Assessment!J23<>"",Assessment!J23,"") ->  | D10: =IF(C10<>"",Assessment!K23,"") ->  | I10: =1+E4/2 ->  | J10: 0 | N10: 0.3829249347 | U10: -1.5 | V10: 0.2417303038
A11: 4 | B11: =Assessment!G24 -> 3993 | C11: =IF(Assessment!J24<>"",Assessment!J24,"") ->  | D11: =IF(C11<>"",Assessment!K24,"") ->  | I11: =I10+$E$4 ->  | J11: 1 | N11: 0.2417303038 | U11: -0.5 | V11: 0.2417303038
A12: 5 | B12: =Assessment!G25 -> 1999 | C12: =IF(Assessment!J25<>"",Assessment!J25,"") ->  | D12: =IF(C12<>"",Assessment!K25,"") ->  | I12: =I11+$E$4 ->  | J12: 2 | N12: 0.06059754893 | U12: -0.5 | V12: 0
A13: 6 | B13: =Assessment!G26 -> 1000 | C13: =IF(Assessment!J26<>"",Assessment!J26,"") ->  | D13: =IF(C13<>"",Assessment!K26,"") ->  | I13: =I12+$E$4 ->  | J13: 3 | N13: 0.005977006485 | U13: -0.5 | V13: 0.3829249347
A14: 7 | B14: =Assessment!G27 -> 501 | C14: =IF(Assessment!J27<>"",Assessment!J27,"") ->  | D14: =IF(C14<>"",Assessment!K27,"") ->  | I14: =I13+$E$4 ->  | J14: 4 | N14: 0.0002292725706 | U14: 0.5 | V14: 0.3829249347
A15: 8 | B15: =Assessment!G28 -> 9987 | C15: =IF(Assessment!J28<>"",Assessment!J28,"") ->  | D15: =IF(C15<>"",Assessment!K28,"") ->  | I15: =I14+$E$4 ->  | U15: 0.5 | V15: 0
A16: 9 | B16: =Assessment!G29 -> 7988 | C16: =IF(Assessment!J29<>"",Assessment!J29,"") ->  | D16: =IF(C16<>"",Assessment!K29,"") ->  | U16: 0.5 | V16: 0.2417303038
A17: 10 | B17: =Assessment!G30 -> 5984 | C17: =IF(Assessment!J30<>"",Assessment!J30,"") ->  | D17: =IF(C17<>"",Assessment!K30,"") ->  | J17: Sums: | K17: =SUM(K6:K15) ->  | L17: =SUM(L6:L15)/K17 ->  | M17: =SUM(M6:M15) ->  | U17: 1.5 | V17: 0.2417303038
A18: 11 | B18: =Assessment!G31 -> 3989 | C18: =IF(Assessment!J31<>"",Assessment!J31,"") ->  | D18: =IF(C18<>"",Assessment!K31,"") ->  | U18: 1.5 | V18: 0
A19: 12 | B19: =Assessment!G32 -> 1999 | C19: =IF(Assessment!J32<>"",Assessment!J32,"") ->  | D19: =IF(C19<>"",Assessment!K32,"") ->  | U19: 1.5 | V19: 0.06059754893
A20: 13 | B20: =Assessment!G33 -> 1000 | C20: =IF(Assessment!J33<>"",Assessment!J33,"") ->  | D20: =IF(C20<>"",Assessment!K33,"") ->  | K20: Mean Count Ratio | L20: =AVERAGE(E8:E57) ->  | M20: =CONCATENATE("Mean Count Ratio: ",ROUND(L20,3)," (",TEXT(L23,"0.0%"),")") ->  | U20: 2.5 | V20: 0.06059754893
A21: 14 | B21: =Assessment!G34 -> 500 | C21: =IF(Assessment!J34<>"",Assessment!J34,"") ->  | D21: =IF(C21<>"",Assessment!K34,"") ->  | K21: Uncertainty of Ratio | L21: =STDEV(E8:E57) ->  | U21: 2.5 | V21: 0
A22: 15 | B22: =Assessment!G35 -> 9985 | C22: =IF(Assessment!J35<>"",Assessment!J35,"") ->  | D22: =IF(C22<>"",Assessment!K35,"") ->  | E22: =IF(C22<>"",C22/B22,"") ->  | F22: =IF(C22<>"",C22-B22,"") ->  | K22: Significance | L22: =(L20-1)/L21 ->  | M22: =VLOOKUP(ABS(L22),Stats!$J$37:$K$42,2) ->  | U22: 2.5 | V22: 0.005977006485
A23: 16 | B23: =Assessment!G36 -> 7981 | C23: =IF(Assessment!J36<>"",Assessment!J36,"") ->  | D23: =IF(C23<>"",Assessment!K36,"") ->  | K23: %RSD of Ratio | L23: =L21/L20 ->  | U23: 3.5 | V23: 0.005977006485
A24: 17 | B24: =Assessment!G37 -> 5985 | C24: =IF(Assessment!J37<>"",Assessment!J37,"") ->  | D24: =IF(C24<>"",Assessment!K37,"") ->  | U24: 3.5 | V24: 0
A25: 18 | B25: =Assessment!G38 -> 3997 | C25: =IF(Assessment!J38<>"",Assessment!J38,"") ->  | D25: =IF(C25<>"",Assessment!K38,"") ->  | K25: Centroid of Distribution | L25: =L17 -> 
A26: 19 | B26: =Assessment!G39 -> 1999 | C26: =IF(Assessment!J39<>"",Assessment!J39,"") ->  | D26: =IF(C26<>"",Assessment!K39,"") ->  | K26: Significance | L26: =(L20-1)/L21 -> 
A27: 20 | B27: =Assessment!G40 -> 999 | C27: =IF(Assessment!J40<>"",Assessment!J40,"") ->  | D27: =IF(C27<>"",Assessment!K40,"") ->  | K27: Number of Peaks | L27: =COUNT(F8:F57) -> 0
A28: 21 | B28: =Assessment!G41 -> 500 | C28: =IF(Assessment!J41<>"",Assessment!J41,"") ->  | D28: =IF(C28<>"",Assessment!K41,"") ->  | K28: Mean z-score | L28: =AVERAGE(G8:G57) -> 
A29: 22 | B29: =Assessment!G42 -> 9981 | C29: =IF(Assessment!J42<>"",Assessment!J42,"") ->  | D29: =IF(C29<>"",Assessment!K42,"") -> 
A30: 23 | B30: =Assessment!G43 -> 7978 | C30: =IF(Assessment!J43<>"",Assessment!J43,"") ->  | D30: =IF(C30<>"",Assessment!K43,"") -> 
A31: 24 | B31: =Assessment!G44 -> 5984 | C31: =IF(Assessment!J44<>"",Assessment!J44,"") ->  | D31: =IF(C31<>"",Assessment!K44,"") ->  | J31: Plot Limits
A32: 25 | B32: =Assessment!G45 -> 3984 | C32: =IF(Assessment!J45<>"",Assessment!J45,"") ->  | D32: =IF(C32<>"",Assessment!K45,"") ->  | J32: 0 | K32: 0
A33: 26 | B33: =Assessment!G46 -> 1996 | C33: =IF(Assessment!J46<>"",Assessment!J46,"") ->  | D33: =IF(C33<>"",Assessment!K46,"") ->  | J33: 0 | K33: 25
A34: 27 | B34: =Assessment!G47 -> 998 | C34: =IF(Assessment!J47<>"",Assessment!J47,"") ->  | D34: =IF(C34<>"",Assessment!K47,"") ->  | J34: =L25 ->  | K34: 0
A35: 28 | B35: =Assessment!G48 -> 499 | C35: =IF(Assessment!J48<>"",Assessment!J48,"") ->  | D35: =IF(C35<>"",Assessment!K48,"") ->  | J35: =J34 ->  | K35: 25
A36: 29 | B36: =Assessment!G49 -> 9978 | C36: =IF(Assessment!J49<>"",Assessment!J49,"") ->  | D36: =IF(C36<>"",Assessment!K49,"") -> 
A37: 30 | B37: =Assessment!G50 -> 7982 | C37: =IF(Assessment!J50<>"",Assessment!J50,"") ->  | D37: =IF(C37<>"",Assessment!K50,"") ->  | J37: 0
A38: 31 | B38: =Assessment!G51 -> 5985 | C38: =IF(Assessment!J51<>"",Assessment!J51,"") ->  | D38: =IF(C38<>"",Assessment!K51,"") ->  | J38: 1 | K38: May be significant at 84%
A39: 32 | B39: =Assessment!G52 -> 3986 | C39: =IF(Assessment!J52<>"",Assessment!J52,"") ->  | D39: =IF(C39<>"",Assessment!K52,"") ->  | J39: 1.282 | K39: Significant at 90%
A40: 33 | B40: =Assessment!G53 -> 1992 | C40: =IF(Assessment!J53<>"",Assessment!J53,"") ->  | D40: =IF(C40<>"",Assessment!K53,"") ->  | J40: 1.645 | K40: Significant at 95%
A41: =IF(B41<>"",A40+1,"") -> 34 | B41: =Assessment!G54 -> 1000 | C41: =IF(Assessment!J54<>"",Assessment!J54,"") ->  | D41: =IF(C41<>"",Assessment!K54,"") ->  | J41: 2.236 | K41: Significant at 99%
A42: 35 | B42: =Assessment!G55 -> 499 | C42: =IF(Assessment!J55<>"",Assessment!J55,"") ->  | D42: =IF(C42<>"",Assessment!K55,"") ->  | J42: 3 | K42: Significant at 99.9%
A43: 36 | B43: =Assessment!G56 -> 9981 | C43: =IF(Assessment!J56<>"",Assessment!J56,"") ->  | D43: =IF(C43<>"",Assessment!K56,"") -> 
A44: 37 | B44: =Assessment!G57 -> 7982 | C44: =IF(Assessment!J57<>"",Assessment!J57,"") ->  | D44: =IF(C44<>"",Assessment!K57,"") -> 
A45: 38 | B45: =Assessment!G58 -> 5984 | C45: =IF(Assessment!J58<>"",Assessment!J58,"") ->  | D45: =IF(C45<>"",Assessment!K58,"") -> 
A46: 39 | B46: =Assessment!G59 -> 3990 | C46: =IF(Assessment!J59<>"",Assessment!J59,"") ->  | D46: =IF(C46<>"",Assessment!K59,"") -> 
A47: 40 | B47: =Assessment!G60 -> 1995 | C47: =IF(Assessment!J60<>"",Assessment!J60,"") ->  | D47: =IF(C47<>"",Assessment!K60,"") -> 
A48: 41 | B48: =Assessment!G61 -> 995 | C48: =IF(Assessment!J61<>"",Assessment!J61,"") ->  | D48: =IF(C48<>"",Assessment!K61,"") -> 
A49: 42 | B49: =Assessment!G62 -> 496 | C49: =IF(Assessment!J62<>"",Assessment!J62,"") ->  | D49: =IF(C49<>"",Assessment!K62,"") -> 
A50: 43 | B50: =Assessment!G63 -> 9984 | C50: =IF(Assessment!J63<>"",Assessment!J63,"") ->  | D50: =IF(C50<>"",Assessment!K63,"") -> 
A51: 44 | B51: =Assessment!G64 -> 7985 | C51: =IF(Assessment!J64<>"",Assessment!J64,"") ->  | D51: =IF(C51<>"",Assessment!K64,"") -> 
A52: 45 | B52: =Assessment!G65 -> 5988 | C52: =IF(Assessment!J65<>"",Assessment!J65,"") ->  | D52: =IF(C52<>"",Assessment!K65,"") -> 
A53: 46 | B53: =Assessment!G66 -> 3991 | C53: =IF(Assessment!J66<>"",Assessment!J66,"") ->  | D53: =IF(C53<>"",Assessment!K66,"") -> 
A54: 47 | B54: =Assessment!G67 -> 1996 | C54: =IF(Assessment!J67<>"",Assessment!J67,"") ->  | D54: =IF(C54<>"",Assessment!K67,"") -> 
A55: 48 | B55: =Assessment!G68 -> 996 | C55: =IF(Assessment!J68<>"",Assessment!J68,"") ->  | D55: =IF(C55<>"",Assessment!K68,"") -> 
A56: 49 | B56: =Assessment!G69 -> 499 | C56: =IF(Assessment!J69<>"",Assessment!J69,"") ->  | D56: =IF(C56<>"",Assessment!K69,"") -> 
A57: 50 | B57: =Assessment!G70 -> 9961 | C57: =IF(Assessment!J70<>"",Assessment!J70,"") ->  | D57: =IF(C57<>"",Assessment!K70,"") -> 

Sheet Plots
F4: 0 | G4: 8192 | H4: X
F5: 0 | G5: 0 | H5: Y
